Workbook

Sheet Data summary
A1: RUN # 2 | B1: Rate classes | C1: Weather station used for normalization | H1: Test Year
A2: 1 | B2: Residential class | C2: Windsor | H2: 2004
A3: 2 | B3: Streetlights
A4: 3 | B4: General service <50kW
A5: 4 | B5: General service >50kW to < 1000kW
A6: 5 | B6: General service 1000kW to <5000kW
A7: 6 | B7: Large User >5000 kW
A8: 7 | B8: Embedded LDC
A9: 8 | B9: USL
A12: Monthly kWh by class (with actual weather) | C12: Jan | D12: Feb | E12: Mar | F12: Apr | G12: May | H12: Jun | I12: Jul | J12: Aug | K12: Sep | L12: Oct | M12: Nov | N12: Dec | O12: TOTAL
A13: 1 | B13: Residential class | C13: 39609435.91 | D13: 32954705.98 | E13: 32527798.05 | F13: 27445389.37 | G13: 26585093.22 | H13: 28682151.46 | I13: 33518675.99 | J13: 31253419.03 | K13: 29413670.64 | L13: 27834231.29 | M13: 30397113.65 | N13: 37862126.85 | O13: 378083811.4
A14: 2 | B14: Streetlights | C14: 996203.5 | D14: 916948.62 | E14: 856595.17 | F14: 719239.39 | G14: 651541.47 | H14: 570056.4 | I14: 630614.69 | J14: 725483.68 | K14: 801166.36 | L14: 911963.29 | M14: 1010329.61 | N14: 1030794 | O14: 9820936.18
A15: 3 | B15: General service <50kW | C15: 16408649.38 | D15: 14447694.05 | E15: 14644529.74 | F15: 12655163.86 | G15: 12545673.47 | H15: 12943604.21 | I15: 14589147.96 | J15: 13671823.98 | K15: 13237824.25 | L15: 12454911.38 | M15: 13201138.38 | N15: 15738646.33 | O15: 166538807
A16: 4 | B16: General service >50kW to < 1000kW | C16: 40298458.52 | D16: 38680277.25 | E16: 40201841.89 | F16: 36940054.38 | G16: 38209145.65 | H16: 38393148.99 | I16: 38136315.26 | J16: 39644181.45 | K16: 39497074.52 | L16: 39412680.24 | M16: 40192344.28 | N16: 39953987.95 | O16: 469559510.4
A17: 5 | B17: General service 1000kW to <5000kW | C17: 22850315.84 | D17: 22378745.55 | E17: 24512937.11 | F17: 23273646.43 | G17: 24634774.88 | H17: 25700185.79 | I17: 24459372.88 | J17: 26951293.59 | K17: 26204617.27 | L17: 25244356.61 | M17: 25351223.23 | N17: 23007910.6 | O17: 294569379.8
A18: 6 | B18: Large User >5000 kW | C18: 20072867.77 | D18: 19695682.02 | E18: 21566608.57 | F18: 20341772.89 | G18: 20973060.91 | H18: 21933754.46 | I18: 18824305.96 | J18: 22194557.23 | K18: 21714256.02 | L18: 21129649.31 | M18: 20959114.02 | N18: 18749631.7 | O18: 248155260.9
A19: 7 | B19: Embedded LDC | C19: 5577996.794 | D19: 4973340.81 | E19: 4905023.141 | F19: 4349863.317 | G19: 4183598.275 | H19: 3946185.482 | I19: 4186101.722 | J19: 4197681.236 | K19: 4157839.8 | L19: 4229781.955 | M19: 4632439.305 | N19: 5352758.003 | O19: 54692609.84
A20: 8 | B20: USL | C20: 306589.08 | D20: 306623.53 | E20: 318725.47 | F20: 278878.68 | G20: 312271.4 | H20: 298606.69 | I20: 343889.25 | J20: 295408.04 | K20: 309892.94 | L20: 292192.88 | M20: 287526.83 | N20: 327613.57 | O20: 3678218.36
A23: Monthly kWh by class (with normalized weather) | C23: Jan | D23: Feb | E23: Mar | F23: Apr | G23: May | H23: Jun | I23: Jul | J23: Aug | K23: Sep | L23: Oct | M23: Nov | N23: Dec | O23: TOTAL
A24: 1 | B24: Residential class | C24: 38503864.2 | D24: 33284212.91 | E24: 33548835.9 | F24: 27760529.91 | G24: 26444877.81 | H24: 30464365.16 | I24: 35182442.02 | J24: 33581091.44 | K24: 28493832.25 | L24: 28594014 | M24: 31383307.64 | N24: 37785502.68 | O24: 385026875.9
A25: 2 | B25: Streetlights | C25: 996203.5 | D25: 916948.62 | E25: 856595.17 | F25: 719239.39 | G25: 651541.47 | H25: 570056.4 | I25: 630614.69 | J25: 725483.68 | K25: 801166.36 | L25: 911963.29 | M25: 1010329.61 | N25: 1030794 | O25: 9820936.18
A26: 3 | B26: General service <50kW | C26: 16087104.86 | D26: 14543527.86 | E26: 14941488.43 | F26: 12746819.35 | G26: 12505271.46 | H26: 13444772.33 | I26: 15057007.95 | J26: 14326378.03 | K26: 12976317.69 | L26: 12675886.61 | M26: 13487963.07 | N26: 15716360.95 | O26: 168508898.6
A27: 4 | B27: General service >50kW to < 1000kW | C27: 39977580.28 | D27: 38775912.48 | E27: 40498185.24 | F27: 37031519.94 | G27: 38170997.33 | H27: 38792879.58 | I27: 38509479.37 | J27: 40166252.34 | K27: 39271020.54 | L27: 39633197.58 | M27: 40478574.64 | N27: 39931748.76 | O27: 471237348.1
A28: 5 | B28: General service 1000kW to <5000kW | C28: 22707986.82 | D28: 22421165.59 | E28: 24644383.42 | F28: 23314216.97 | G28: 24606367.15 | H28: 26507073.1 | I28: 25212633.67 | J28: 28005134.29 | K28: 25899894.59 | L28: 25342169.47 | M28: 25478183.81 | N28: 22998046.16 | O28: 297137255
A29: 6 | B29: Large User >5000 kW | C29: 20072867.77 | D29: 19695682.02 | E29: 21566608.57 | F29: 20341772.89 | G29: 20973060.91 | H29: 21933754.46 | I29: 18824305.96 | J29: 22194557.23 | K29: 21714256.02 | L29: 21129649.31 | M29: 20959114.02 | N29: 18749631.7 | O29: 248155260.9
A30: 7 | B30: Embedded LDC | C30: 5470734.592 | D30: 5005309.463 | E30: 5004083.895 | F30: 4380438.148 | G30: 4170184.262 | H30: 4005081.605 | I30: 4241083.551 | J30: 4274602.922 | K30: 4092729.255 | L30: 4303495.822 | M30: 4728119.519 | N30: 5345323.951 | O30: 55021186.99
A31: 8 | B31: USL | C31: 306589.08 | D31: 306623.53 | E31: 318725.47 | F31: 278878.68 | G31: 312271.4 | H31: 298606.69 | I31: 343889.25 | J31: 295408.04 | K31: 309892.94 | L31: 292192.88 | M31: 287526.83 | N31: 327613.57 | O31: 3678218.36
A34: Residential class information | C34: Equipment saturation
B35: Electric space heating | C35: 0.1371835443
B36: Electric water heating | C36: 0.1736011478
B37: Air conditioning | C37: 0.5032916859
B38: Baseload | C38: 1
A41: General service >50kW to < 1000kW | C41: 2004 kWh (Actual) | D41: 2004 kWh (Weather Corrected)
B42: Weather sensitive load | C42: 224305782.1 | D42: 225983619.8 | E42: =D42/D44 -> 0.4795537127
B43: Non-weather sensitive load | C43: 245253728.2 | D43: 245253728.2
B44: TOTAL | C44: 469559510.4 | D44: 471237348.1
A46: General service 1000kW to <5000kW | C46: 2004 kWh (Actual) | D46: 2004 kWh (Weather Corrected)
B47: Weather sensitive load | C47: 65327108.24 | D47: 67894983.51 | E47: =D47/D49 -> 0.2284970409
B48: Non-weather sensitive load | C48: 229242271.5 | D48: 229242271.5
B49: TOTAL | C49: 294569379.8 | D49: 297137255
A51: Large User >5000 kW | C51: 2004 kWh (Actual) | D51: 2004 kWh (Weather Corrected)
B52: Weather sensitive load | C52: 0 | D52: 0
B53: Non-weather sensitive load | C53: 248155260.9 | D53: 248155260.9
B54: TOTAL | C54: 248155260.9 | D54: 248155260.9

Sheet Hourly load shapes by class
A1: ALL UNITS IN GWh
A2: Year | B2: Month | C2: Day | D2: Hour (EST) | E2: Residential | F2: GS>50kW | G2: Street Lighting | H2: GS<50 kW | I2: USL | J2: Industrial > 1 MW | K2: Industrial > 5 MW | L2: Embedded LDC | M2: TOTAL LDC sales | N2: Residential | O2: GS>50kW | P2: Street Lighting | Q2: Sentinel Lights | R2: GS<50 kW | S2: USL | T2: Industrial > 1 MW | U2: Industrial > 5 MW | V2: Embedded LDC | W2: TOTAL LDC sales
A3: 2004 | B3: 1 | C3: 1 | D3: 1 | E3: 0.03759968388 | F3: 0.03330760534 | G3: 0.001079342514 | H3: 0.02235716964 | I3: 0.0004120820968 | J3: 0.01358004807 | K3: 0.009755834399 | L3: 0.005927299419 | M3: 0.1240190654 | N3: =E3*1000000*$N$8826 -> 45513.75771 | O3: =F3*1000000*$O$8826 -> 34853.73566 | P3: =G3*1000000*$P$8826 -> 589.8961506 | Q3: =G3*1000000*$Q$8826 -> 13.95637075 | R3: =H3*1000000*$R$8826 -> 25908.56877 | S3: =I3*1000000*$S$8826 -> 254.7618576 | T3: =J3*1000000*$T$8826 -> 10558.16636 | U3: =K3*1000000*$U$8826 -> 5720.226903 | V3: =L3*1000000*$V$8826 -> 0 | W3: =SUM(N3:V3) -> 123413.0698
A4: 2004 | B4: 1 | C4: 1 | D4: 2 | E4: 0.03583647785 | F4: 0.0327123842 | G4: 0.001075725265 | H4: 0.02178691233 | I4: 0.0004120820968 | J4: 0.01359103938 | K4: 0.009728857819 | L4: 0.005907434998 | M4: 0.1210509139 | N4: =E4*1000000*$N$8826 -> 43379.42775 | O4: =F4*1000000*$O$8826 -> 34230.88451 | P4: =G4*1000000*$P$8826 -> 587.9192056 | Q4: =G4*1000000*$Q$8826 -> 13.90959815 | R4: =H4*1000000*$R$8826 -> 25247.72703 | S4: =I4*1000000*$S$8826 -> 254.7618576 | T4: =J4*1000000*$T$8826 -> 10566.71184 | U4: =K4*1000000*$U$8826 -> 5704.409479 | V4: =L4*1000000*$V$8826 -> 0 | W4: =SUM(N4:V4) -> 119985.7513
A5: 2004 | B5: 1 | C5: 1 | D5: 3 | E5: 0.03360529918 | F5: 0.03230086592 | G5: 0.001043283389 | H5: 0.02141775819 | I5: 0.0004120820968 | J5: 0.01381592164 | K5: 0.009797485419 | L5: 0.00572927773 | M5: 0.1181219736 | N5: 40678.62512 | O5: 33800.26366 | P5: 570.1886542 | Q5: 13.4901105 | R5: 24819.93338 | S5: 254.7618576 | T5: 10741.55248 | U5: 5744.648523 | V5: 0 | W5: 116623.4638
A6: 2004 | B6: 1 | C6: 1 | D6: 4 | E6: 0.03343049801 | F6: 0.03228333566 | G6: 0.00102485819 | H6: 0.0211424098 | I6: 0.0004120820968 | J6: 0.01376178361 | K6: 0.009683753408 | L6: 0.005628094209 | M6: 0.117366815 | N6: 40467.03136 | O6: 33781.91965 | P6: 560.1186771 | Q6: 13.25186461 | R6: 24500.84635 | S6: 254.7618576 | T6: 10699.46144 | U6: 5677.963001 | V6: 0 | W6: 115955.3542
A7: 2004 | B7: 1 | C7: 1 | D7: 5 | E7: 0.03237800385 | F7: 0.03275707701 | G7: 0.001048398349 | H7: 0.02150390679 | I7: 0.0004120820968 | J7: 0.01355051436 | K7: 0.009743389523 | L7: 0.005757366957 | M7: 0.1171507389 | N7: 39193.00565 | O7: 34277.65195 | P7: 572.9841478 | Q7: 13.55624917 | R7: 24919.76654 | S7: 254.7618576 | T7: 10535.2046 | U7: 5712.929985 | V7: 0 | W7: 115479.861
A8: 2004 | B8: 1 | C8: 1 | D8: 6 | E8: 0.03416605768 | F8: 0.03323293616 | G8: 0.001055632687 | H8: 0.02108026003 | I8: 0.0004120820968 | J8: 0.01369211684 | K8: 0.009786814331 | L8: 0.00579709493 | M8: 0.1192229948 | N8: 41357.41343 | O8: 34775.60036 | P8: 576.9379514 | Q8: 13.64979233 | R8: 24428.82419 | S8: 254.7618576 | T8: 10645.29718 | U8: 5738.391647 | V8: 0 | W8: 117790.8764
A9: 2004 | B9: 1 | C9: 1 | D9: 7 | E9: 0.03707905845 | F9: 0.03471414332 | G9: 0.001116447171 | H9: 0.02091318116 | I9: 0.0004120820968 | J9: 0.01421312713 | K9: 0.009807981359 | L9: 0.00613106274 | M9: 0.1243870834 | N9: 44883.54977 | O9: 36325.56477 | P9: 610.1750653 | Q9: 14.4361502 | R9: 24235.20513 | S9: 254.7618576 | T9: 11050.37036 | U9: 5750.802703 | V9: 0 | W9: 123124.8658
A10: 2004 | B10: 1 | C10: 1 | D10: 8 | E10: 0.04105644593 | F10: 0.03687625195 | G10: 0.00120167776 | H10: 0.02109365346 | I10: 0.0004120820968 | J10: 0.01439521797 | K10: 0.009891489509 | L10: 0.006599113625 | M10: 0.1315259323 | N10: 49698.10753 | O10: 38588.03791 | P10: 656.7563826 | Q10: 15.53821899 | R10: 24444.34515 | S10: 254.7618576 | T10: 11191.94168 | U10: 5799.766794 | V10: 0 | W10: 130649.2555
A11: 2004 | B11: 1 | C11: 1 | D11: 9 | E11: 0.04744568752 | F11: 0.03778758862 | G11: 0.001249012337 | H11: 0.02055542822 | I11: 0.0004120820968 | J11: 0.01408280307 | K11: 0.009933614152 | L11: 0.006859055402 | M11: 0.1383252714 | N11: 57432.17239 | O11: 39541.67859 | P11: 682.6262844 | Q11: 16.15027577 | R11: 23820.62372 | S11: 254.7618576 | T11: 10949.04649 | U11: 5824.466118 | V11: 0 | W11: 138521.5257
A12: 2004 | B12: 1 | C12: 1 | D12: 10 | E12: 0.0530789041 | F12: 0.03852623458 | G12: 0.001265911592 | H12: 0.02059562674 | I12: 0.0004120820968 | J12: 0.01390398543 | K12: 0.00991612619 | L12: 0.00695185907 | M12: 0.1446507298 | N12: 64251.08223 | O12: 40314.6123 | P12: 691.8622825 | Q12: 16.36879053 | R12: 23867.20772 | S12: 254.7618576 | T12: 10810.02 | U12: 5814.212243 | V12: 0 | W12: 146020.1274
A13: 2004 | B13: 1 | C13: 1 | D13: 11 | E13: 0.05168852009 | F13: 0.03945316521 | G13: 0.001281002045 | H13: 0.02266475484 | I13: 0.0004120820968 | J13: 0.01375532665 | K13: 0.009899485289 | L13: 0.00703472955 | M13: 0.1461890658 | N13: 62568.04678 | O13: 41284.57081 | P13: 700.1097108 | Q13: 16.56391669 | R13: 26265.01336 | S13: 254.7618576 | T13: 10694.44131 | U13: 5804.455032 | V13: 0 | W13: 147587.9628
A14: 2004 | B14: 1 | C14: 1 | D14: 12 | E14: 0.05271286138 | F14: 0.03972362228 | G14: 0.001253449153 | H14: 0.02313674553 | I14: 0.0004120820968 | J14: 0.01366196553 | K14: 0.009933294918 | L14: 0.006883420546 | M14: 0.1477174414 | N14: 63807.99395 | O14: 41567.58242 | P14: 685.0511501 | Q14: 16.20764574 | R14: 26811.97899 | S14: 254.7618576 | T14: 10621.85525 | U14: 5824.278939 | V14: 0 | W14: 149589.7102
A15: 2004 | B15: 1 | C15: 1 | D15: 13 | E15: 0.05400544801 | F15: 0.04005568167 | G15: 0.001224596153 | H15: 0.02323025178 | I15: 0.0004120820968 | J15: 0.01355429876 | K15: 0.009923306689 | L15: 0.006724971892 | M15: 0.1491306371 | N15: 65372.64739 | O15: 41915.05592 | P15: 669.2820376 | Q15: 15.83456384 | R15: 26920.33856 | S15: 254.7618576 | T15: 10538.14688 | U15: 5818.42245 | V15: 0 | W15: 151504.4897
A16: 2004 | B16: 1 | C16: 1 | D16: 14 | E16: 0.05146591967 | F16: 0.04007102292 | G16: 0.00120995772 | H16: 0.0230570872 | I16: 0.0004120820968 | J16: 0.01342790285 | K16: 0.009909524143 | L16: 0.006644583718 | M16: 0.1461980803 | N16: 62298.59287 | O16: 41931.10932 | P16: 661.2816531 | Q16: 15.6452825 | R16: 26719.66706 | S16: 254.7618576 | T16: 10439.87705 | U16: 5810.341204 | V16: 0 | W16: 148131.2763
A17: 2004 | B17: 1 | C17: 1 | D17: 15 | E17: 0.05033217776 | F17: 0.03983282575 | G17: 0.001160560212 | H17: 0.02260121037 | I17: 0.0004120820968 | J17: 0.01350178107 | K17: 0.009645683468 | L17: 0.00637331318 | M17: 0.1438596339 | N17: 60926.21819 | O17: 41681.85509 | P17: 634.2842914 | Q17: 15.00655111 | R17: 26191.37497 | S17: 254.7618576 | T17: 10497.31562 | U17: 5655.641107 | V17: 0 | W17: 145856.4577
A18: 2004 | B18: 1 | C18: 1 | D18: 16 | E18: 0.05412299378 | F18: 0.03947870812 | G18: 0.001190769637 | H18: 0.0218157909 | I18: 0.0004120820968 | J18: 0.01352155612 | K18: 0.009311662349 | L18: 0.00653921076 | M18: 0.1463927738 | N18: 65514.93448 | O18: 41311.29941 | P18: 650.7947352 | Q18: 15.3971722 | R18: 25281.19292 | S18: 254.7618576 | T18: 10512.69025 | U18: 5459.791474 | V18: 0 | W18: 149000.8623
A19: 2004 | B19: 1 | C19: 1 | D19: 17 | E19: 0.05811984032 | F19: 0.03934787998 | G19: 0.001215750962 | H19: 0.02274110272 | I19: 0.0004120820968 | J19: 0.01319777263 | K19: 0.009365519318 | L19: 0.00667639779 | M19: 0.1510763458 | N19: 70353.04709 | O19: 41174.39826 | P19: 664.4478502 | Q19: 15.72019165 | R19: 26353.48897 | S19: 254.7618576 | T19: 10260.95624 | U19: 5491.36992 | V19: 0 | W19: 154568.1904
A20: 2004 | B20: 1 | C20: 1 | D20: 18 | E20: 0.06738776073 | F20: 0.03968917808 | G20: 0.001309713759 | H20: 0.02289104488 | I20: 0.0004120820968 | J20: 0.01367573804 | K20: 0.009971742643 | L20: 0.007192402323 | M20: 0.1625296626 | N20: 81571.70216 | O20: 41531.53933 | P20: 715.8016062 | Q20: 16.93517171 | R20: 26527.24921 | S20: 254.7618576 | T20: 10632.56305 | U20: 5846.822342 | V20: 0 | W20: 167097.3747
A21: 2004 | B21: 1 | C21: 1 | D21: 19 | E21: 0.07216381936 | F21: 0.0391512018 | G21: 0.001302479263 | H21: 0.0224459734 | I21: 0.0004120820968 | J21: 0.01375457 | K21: 0.01008498563 | L21: 0.007152673482 | M21: 0.166467785 | N21: 87353.03735 | O21: 40968.59033 | P21: 711.8477161 | Q21: 16.8416265 | R21: 26011.47886 | S21: 254.7618576 | T21: 10693.85303 | U21: 5913.22113 | V21: 0 | W21: 171923.6319
A22: 2004 | B22: 1 | C22: 1 | D22: 20 | E22: 0.06597041886 | F22: 0.0381440993 | G22: 0.001290045195 | H22: 0.02311618939 | I22: 0.0004120820968 | J22: 0.01347086899 | K22: 0.01009899623 | L22: 0.007084390764 | M22: 0.1595870908 | N22: 79856.03469 | O22: 39914.73841 | P22: 705.0520897 | Q22: 16.68084858 | R22: 26788.15754 | S22: 254.7618576 | T22: 10473.28221 | U22: 5921.436095 | V22: 0 | W22: 163930.1437
A23: 2004 | B23: 1 | C23: 1 | D23: 21 | E23: 0.06159706268 | F23: 0.03741350485 | G23: 0.001240478019 | H23: 0.02326528741 | I23: 0.0004120820968 | J23: 0.01349691494 | K23: 0.01026426267 | L23: 0.006812188485 | M23: 0.1545017812 | N23: 74562.16376 | O23: 39150.22995 | P23: 677.9619994 | Q23: 16.03992331 | R23: 26960.93953 | S23: 254.7618576 | T23: 10493.53232 | U23: 6018.338266 | V23: 0 | W23: 158133.9676
A24: 2004 | B24: 1 | C24: 1 | D24: 22 | E24: 0.06106441074 | F24: 0.03686485799 | G24: 0.001179889659 | H24: 0.02174309318 | I24: 0.0004120820968 | J24: 0.0133482671 | K24: 0.01020930277 | L24: 0.006479462452 | M24: 0.151301366 | N24: 73917.39792 | O24: 38576.11504 | P24: 644.8484696 | Q24: 15.25648932 | R24: 25196.94729 | S24: 254.7618576 | T24: 10377.96213 | U24: 5986.113127 | V24: 0 | W24: 154969.4023
A25: 2004 | B25: 1 | C25: 1 | D25: 23 | E25: 0.05604683661 | F25: 0.03620687167 | G25: 0.001139563465 | H25: 0.02052569921 | I25: 0.0004120820968 | J25: 0.01330453841 | K25: 0.01021729745 | L25: 0.006258007794 | M25: 0.1441108967 | N25: 67843.71247 | O25: 37887.58517 | P25: 622.8088793 | Q25: 14.73505399 | R25: 23786.17231 | S25: 254.7618576 | T25: 10343.96411 | U25: 5990.800723 | V25: 0 | W25: 146744.5406
A26: 2004 | B26: 1 | C26: 1 | D26: 24 | E26: 0.04247576524 | F26: 0.03587195431 | G26: 0.001100932635 | H26: 0.02157215498 | I26: 0.0004120820968 | J26: 0.01339460426 | K26: 0.01048642918 | L26: 0.00604586337 | M26: 0.1313597861 | N26: 51416.16866 | O26: 37537.12103 | P26: 601.6958614 | Q26: 14.23554047 | R26: 24998.85584 | S26: 254.7618576 | T26: 10413.98818 | U26: 6148.60317 | V26: 0 | W26: 131385.4301
A27: 2004 | B27: 1 | C27: 2 | D27: 1 | E27: 0.03714259862 | F27: 0.03732892064 | G27: 0.001067607562 | H27: 0.02190400484 | I27: 0.0004120820968 | J27: 0.01335680468 | K27: 0.01075496923 | L27: 0.005862855955 | M27: 0.1278298436 | N27: 44960.46402 | O27: 39061.71936 | P27: 583.4826142 | Q27: 13.8046327 | R27: 25383.41949 | S27: 254.7618576 | T27: 10384.5999 | U27: 6306.058694 | V27: 0 | W27: 126948.3106
A28: 2004 | B28: 1 | C28: 2 | D28: 2 | E28: 0.03369571736 | F28: 0.03613291484 | G28: 0.001064029637 | H28: 0.0212190673 | I28: 0.0004120820968 | J28: 0.01343048941 | K28: 0.01118004938 | L28: 0.005843207479 | M28: 0.1229775575 | N28: 40788.07473 | O28: 37810.19528 | P28: 581.5271603 | Q28: 13.75836856 | R28: 24589.68076 | S28: 254.7618576 | T28: 10441.88804 | U28: 6555.299795 | V28: 0 | W28: 121035.186
A29: 2004 | B29: 1 | C29: 2 | D29: 3 | E29: 0.03180540197 | F29: 0.03543180921 | G29: 0.00103194046 | H29: 0.0215087482 | I29: 0.0004120820968 | J29: 0.01373490939 | K29: 0.01124077158 | L29: 0.005666987086 | M29: 0.12083265 | N29: 38499.88111 | O29: 37076.54451 | P29: 563.9893705 | Q29: 13.34344146 | R29: 24925.377 | S29: 254.7618576 | T29: 10678.56737 | U29: 6590.903592 | V29: 0 | W29: 118603.3683
A30: 2004 | B30: 1 | C30: 2 | D30: 4 | E30: 0.03163862371 | F30: 0.0352115703 | G30: 0.001013715574 | H30: 0.0196717518 | I30: 0.0004120820968 | J30: 0.01366340997 | K30: 0.01172523067 | L30: 0.005566903607 | M30: 0.1189032877 | N30: 38297.99896 | O30: 36846.08218 | P30: 554.0288717 | Q30: 13.10778572 | R30: 22796.57678 | S30: 254.7618576 | T30: 10622.97827 | U30: 6874.960887 | V30: 0 | W30: 116260.4956
A31: 2004 | B31: 1 | C31: 2 | D31: 5 | E31: 0.03044148243 | F31: 0.03575352473 | G31: 0.001036999794 | H31: 0.01890442491 | I31: 0.0004120820968 | J31: 0.01426330834 | K31: 0.01197320098 | L31: 0.00569477084 | M31: 0.1184797941 | N31: 36848.88043 | O31: 37413.19399 | P31: 566.7544627 | Q31: 13.40886086 | R31: 21907.36129 | S31: 254.7618576 | T31: 11089.38507 | U31: 7020.355567 | V31: 0 | W31: 115114.1015
A32: 2004 | B32: 1 | C32: 2 | D32: 6 | E32: 0.03228476651 | F32: 0.03773139578 | G32: 0.001044155565 | H32: 0.02062186213 | I32: 0.0004120820968 | J32: 0.01488853039 | K32: 0.01307734728 | L32: 0.005734067358 | M32: 0.1257942071 | N32: 39080.14348 | O32: 39482.87729 | P32: 570.6653271 | Q32: 13.50138812 | R32: 23897.61055 | S32: 254.7618576 | T32: 11575.48043 | U32: 7667.759691 | V32: 0 | W32: 122542.8
A33: 2004 | B33: 1 | C33: 2 | D33: 7 | E33: 0.03681151372 | F33: 0.04206137341 | G33: 0.001104308822 | H33: 0.02101975547 | I33: 0.0004120820968 | J33: 0.01601398663 | K33: 0.01455766226 | L33: 0.006064403982 | M33: 0.1380450864 | N33: 44559.69156 | O33: 44013.85135 | P33: 603.5410584 | Q33: 14.27919604 | R33: 24358.70859 | S33: 254.7618576 | T33: 12450.49605 | U33: 8535.726204 | V33: 0 | W33: 134791.0559
A34: 2004 | B34: 1 | C34: 2 | D34: 8 | E34: 0.04058298826 | F34: 0.04806057087 | G34: 0.001188612736 | H34: 0.02187873021 | I34: 0.0004120820968 | J34: 0.01764473934 | K34: 0.0170023771 | L34: 0.006527365958 | M34: 0.1532974666 | N34: 49124.99533 | O34: 50291.52999 | P34: 649.6159179 | Q34: 15.36928252 | R34: 25354.13003 | S34: 254.7618576 | T34: 13718.36773 | U34: 9969.158037 | V34: 0 | W34: 149377.9282
A35: 2004 | B35: 1 | C35: 2 | D35: 9 | E35: 0.0456688824 | F35: 0.05134185808 | G35: 0.001235432654 | H35: 0.0220317468 | I35: 0.0004120820968 | J35: 0.01800582113 | K35: 0.0184009228 | L35: 0.006784481439 | M35: 0.1638812274 | N35: 55281.38096 | O35: 53725.13369 | P35: 675.2045413 | Q35: 15.97468453 | R35: 25531.45305 | S35: 254.7618576 | T35: 13999.10029 | U35: 10789.18003 | V35: 0 | W35: 160272.1891
A36: 2004 | B36: 1 | C36: 2 | D36: 10 | E36: 0.04840082977 | F36: 0.05279382184 | G36: 0.001252148214 | H36: 0.02277575725 | I36: 0.0004120820968 | J36: 0.01816517272 | K36: 0.01955825359 | L36: 0.006876276332 | M36: 0.1702343418 | N36: 58588.35532 | O36: 55244.49722 | P36: 684.3401443 | Q36: 16.19082404 | R36: 26393.64833 | S36: 254.7618576 | T36: 14122.99239 | U36: 11467.76829 | V36: 0 | W36: 166772.5544
A37: 2004 | B37: 1 | C37: 2 | D37: 11 | E37: 0.04997779188 | F37: 0.05428316961 | G37: 0.001267074649 | H37: 0.02286015728 | I37: 0.0004120820968 | J37: 0.0181407612 | K37: 0.01986531145 | L37: 0.006958246092 | M37: 0.1737645943 | N37: 60497.24029 | O37: 56802.98013 | P37: 692.4979311 | Q37: 16.38382936 | R37: 26491.45516 | S37: 254.7618576 | T37: 14104.013 | U37: 11647.80831 | V37: 0 | W37: 170507.1405
A38: 2004 | B38: 1 | C38: 2 | D38: 12 | E38: 0.05151311297 | F38: 0.05389948786 | G38: 0.001239821244 | H38: 0.0233304038 | I38: 0.0004120820968 | J38: 0.01804264797 | K38: 0.01927567339 | L38: 0.006808581745 | M38: 0.1745218111 | N38: 62355.71954 | O38: 56401.48798 | P38: 677.6030498 | Q38: 16.03143092 | R38: 27036.39955 | S38: 254.7618576 | T38: 14027.73229 | U38: 11302.08048 | V38: 0 | W38: 172071.8162
A39: 2004 | B39: 1 | C39: 2 | D39: 13 | E39: 0.04982117373 | F39: 0.05313742159 | G39: 0.001211281996 | H39: 0.02273559581 | I39: 0.0004120820968 | J39: 0.01793825135 | K39: 0.01931609858 | L39: 0.006651856087 | M39: 0.1712237612 | N39: 60307.65678 | O39: 55604.04679 | P39: 662.0054131 | Q39: 15.66240596 | R39: 26347.1073 | S39: 254.7618576 | T39: 13946.56639 | U39: 11325.78335 | V39: 0 | W39: 168463.5903
A40: 2004 | B40: 1 | C40: 2 | D40: 14 | E40: 0.05138480015 | F40: 0.0529370737 | G40: 0.001196802655 | H40: 0.02313505897 | I40: 0.0004120820968 | J40: 0.01784669235 | K40: 0.01857139581 | L40: 0.006572341579 | M40: 0.1720562473 | N40: 62200.39912 | O40: 55394.3988 | P40: 654.0919775 | Q40: 15.47518175 | R40: 26810.02452 | S40: 254.7618576 | T40: 13875.38143 | U40: 10889.13501 | V40: 0 | W40: 170093.6679
A41: 2004 | B41: 1 | C41: 2 | D41: 15 | E41: 0.04899690627 | F41: 0.05175151018 | G41: 0.001147942222 | H41: 0.02251855345 | I41: 0.0004120820968 | J41: 0.01783205866 | K41: 0.01745957017 | L41: 0.006304020438 | M41: 0.1664226435 | N41: 59309.89547 | O41: 54153.80173 | P41: 627.3881455 | Q41: 14.84339499 | R41: 26095.58813 | S41: 254.7618576 | T41: 13864.00408 | U41: 10237.2282 | V41: 0 | W41: 164557.511
A42: 2004 | B42: 1 | C42: 2 | D42: 16 | E42: 0.05015802706 | F42: 0.04928722229 | G42: 0.001177823186 | H42: 0.0216095934 | I42: 0.0004120820968 | J42: 0.01710141026 | K42: 0.01569144653 | L42: 0.006468114242 | M42: 0.1619057191 | N42: 60715.41182 | O42: 51575.12225 | P42: 643.719074 | Q42: 15.22976891 | R42: 25042.24129 | S42: 254.7618576 | T42: 13295.94222 | U42: 9200.508218 | V42: 0 | W42: 160742.9365
A43: 2004 | B43: 1 | C43: 2 | D43: 17 | E43: 0.05654313727 | F43: 0.04784728061 | G43: 0.001202532961 | H43: 0.02157901835 | I43: 0.0004120820968 | J43: 0.0161401763 | K43: 0.01499446944 | L43: 0.00660381003 | M43: 0.1653225071 | N43: 68444.47571 | O43: 50068.33885 | P43: 657.2237778 | Q43: 15.54927711 | R43: 25006.80944 | S43: 254.7618576 | T43: 12548.60554 | U43: 8791.843319 | V43: 0 | W43: 165787.6078
A44: 2004 | B44: 1 | C44: 2 | D44: 18 | E44: 0.06420561354 | F44: 0.04692510266 | G44: 0.001295474204 | H44: 0.02170600022 | I44: 0.0004120820968 | J44: 0.01627013548 | K44: 0.01550558101 | L44: 0.007114204617 | M44: 0.1734341938 | N44: 77719.76882 | O44: 49103.35364 | P44: 708.0192212 | Q44: 16.75104803 | R44: 25153.96217 | S44: 254.7618576 | T44: 12649.64573 | U44: 9091.528001 | V44: 0 | W44: 174697.7905
A45: 2004 | B45: 1 | C45: 2 | D45: 19 | E45: 0.07008990104 | F45: 0.04592651474 | G45: 0.001288318353 | H45: 0.02152552147 | I45: 0.0004120820968 | J45: 0.0161916381 | K45: 0.01578871378 | L45: 0.007074907665 | M45: 0.1782975973 | N45: 84842.59559 | O45: 48058.41153 | P45: 704.1083136 | Q45: 16.65851975 | R45: 24944.81468 | S45: 254.7618576 | T45: 12588.61588 | U45: 9257.539812 | V45: 0 | W45: 180667.5062
A46: 2004 | B46: 1 | C46: 2 | D46: 20 | E46: 0.06588817768 | F46: 0.04522807328 | G46: 0.001276019388 | H46: 0.0213900952 | I46: 0.0004120820968 | J46: 0.01579754413 | K46: 0.0157844734 | L46: 0.007007366874 | M46: 0.172783832 | N46: 79756.48319 | O46: 47327.54859 | P46: 697.3865252 | Q46: 16.49948875 | R46: 24787.87616 | S46: 254.7618576 | T46: 12282.21713 | U46: 9255.053506 | V46: 0 | W46: 174377.8264
A47: 2004 | B47: 1 | C47: 2 | D47: 21 | E47: 0.05986395592 | F47: 0.04396310447 | G47: 0.001226991178 | H47: 0.02151524193 | I47: 0.0004120820968 | J47: 0.01568528884 | K47: 0.01578573969 | L47: 0.006738124369 | M47: 0.1651905285 | N47: 72464.26842 | O47: 46003.86027 | P47: 670.5909972 | Q47: 15.86553255 | R47: 24932.90224 | S47: 254.7618576 | T47: 12194.94129 | U47: 9255.795985 | V47: 0 | W47: 165792.9866
A48: 2004 | B48: 1 | C48: 2 | D48: 22 | E48: 0.05929258618 | F48: 0.042527218 | G48: 0.001167061552 | H48: 0.02071770613 | I48: 0.0004120820968 | J48: 0.01547338548 | K48: 0.01563993697 | L48: 0.006409015833 | M48: 0.1616389922 | N48: 71772.63538 | O48: 44501.32033 | P48: 637.8374875 | Q48: 15.09061628 | R48: 24008.67922 | S48: 254.7618576 | T48: 12030.19143 | U48: 9170.306153 | V48: 0 | W48: 162390.8225
A49: 2004 | B49: 1 | C49: 2 | D49: 23 | E49: 0.05462965843 | F49: 0.04002826289 | G49: 0.001127173706 | H49: 0.01812681926 | I49: 0.0004120820968 | J49: 0.01564208953 | K49: 0.01538091742 | L49: 0.006189968402 | M49: 0.1515369717 | N49: 66128.24314 | O49: 41886.36437 | P49: 616.0374691 | Q49: 14.57484899 | R49: 21006.23428 | S49: 254.7618576 | T49: 12161.35485 | U49: 9018.432868 | V49: 0 | W49: 151086.0037
A50: 2004 | B50: 1 | C50: 2 | D50: 24 | E50: 0.05122527558 | F50: 0.03740448356 | G50: 0.001088962973 | H50: 0.01568017313 | I50: 0.0004120820968 | J50: 0.01579883339 | K50: 0.01543597355 | L50: 0.005980130975 | M50: 0.1430259152 | N50: 62007.29743 | O50: 39140.78989 | P50: 595.1540479 | Q50: 14.0807675 | R50: 18170.9425 | S50: 254.7618576 | T50: 12283.2195 | U50: 9050.714427 | V50: 0 | W50: 141516.9604
A51: 2004 | B51: 1 | C51: 3 | D51: 1 | E51: 0.0370873996 | F51: 0.0348751821 | G51: 0.001015782206 | H51: 0.01857216233 | I51: 0.0004120820968 | J51: 0.01664242066 | K51: 0.01544543584 | L51: 0.005578252687 | M51: 0.1296287175 | N51: 44893.64658 | O51: 36494.07892 | P51: 555.1583537 | Q51: 13.13450817 | R51: 21522.31936 | S51: 254.7618576 | T51: 12939.08866 | U51: 9056.262542 | V51: 0 | W51: 125728.4508
A52: 2004 | B52: 1 | C52: 3 | D52: 2 | E52: 0.03532205024 | F52: 0.0336888049 | G52: 0.0009930705271 | H52: 0.01875115672 | I52: 0.0004120820968 | J52: 0.01651078722 | K52: 0.01568314907 | L52: 0.00545352961 | M52: 0.1268146304 | N52: 42756.72215 | O52: 35252.6304 | P52: 542.7456751 | Q52: 12.84083623 | R52: 21729.7467 | S52: 254.7618576 | T52: 12836.74677 | U52: 9195.643092 | V52: 0 | W52: 122581.8375
A53: 2004 | B53: 1 | C53: 3 | D53: 3 | E53: 0.03327548467 | F53: 0.03278966283 | G53: 0.0009652158236 | H53: 0.01958955698 | I53: 0.0004120820968 | J53: 0.016674486 | K53: 0.01572270498 | L53: 0.005300563183 | M53: 0.1247297566 | N53: 40279.39044 | O53: 34311.75039 | P53: 527.5221643 | Q53: 12.48066274 | R53: 22701.32545 | S53: 254.7618576 | T53: 12964.0187 | U53: 9218.836271 | V53: 0 | W53: 120270.0859
A54: 2004 | B54: 1 | C54: 3 | D54: 4 | E54: 0.03204217448 | F54: 0.03283886298 | G54: 0.0009423515425 | H54: 0.01949017549 | I54: 0.0004120820968 | J54: 0.01658495959 | K54: 0.01548719759 | L54: 0.005175002077 | M54: 0.1229728058 | N54: 38786.49008 | O54: 34363.2344 | P54: 515.0260834 | Q54: 12.18501758 | R54: 22586.15738 | S54: 254.7618576 | T54: 12894.41404 | U54: 9080.749087 | V54: 0 | W54: 118493.0179
A55: 2004 | B55: 1 | C55: 3 | D55: 5 | E55: 0.03223495721 | F55: 0.03310959483 | G55: 0.0009563042143 | H55: 0.01863717198 | I55: 0.0004120820968 | J55: 0.01825014005 | K55: 0.01578143001 | L55: 0.005251624337 | M55: 0.1246333047 | N55: 39019.8502 | O55: 34646.53355 | P55: 522.651677 | Q55: 12.36543173 | R55: 21597.65568 | S55: 254.7618576 | T55: 14189.05248 | U55: 9253.269048 | V55: 0 | W55: 119496.1399
A56: 2004 | B56: 1 | C56: 3 | D56: 6 | E56: 0.03352300705 | F56: 0.0343084503 | G56: 0.0009697734077 | H56: 0.01941453684 | I56: 0.0004120820968 | J56: 0.0190613356 | K56: 0.01668526406 | L56: 0.005325591536 | M56: 0.1297000409 | N56: 40579.01193 | O56: 35901.03958 | P56: 530.0130338 | Q56: 12.53959429 | R56: 22498.50365 | S56: 254.7618576 | T56: 14819.73785 | U56: 9783.222271 | V56: 0 | W56: 124378.8298
A57: 2004 | B57: 1 | C57: 3 | D57: 7 | E57: 0.03527601877 | F57: 0.03752109071 | G57: 0.001000989123 | H57: 0.01974136994 | I57: 0.0004120820968 | J57: 0.01996400871 | K57: 0.02352061404 | L57: 0.005497015239 | M57: 0.1429331886 | N57: 42701.00186 | O57: 39262.80991 | P57: 547.0734478 | Q57: 12.94322714 | R57: 22877.25365 | S57: 254.7618576 | T57: 15521.54485 | U57: 13791.05505 | V57: 0 | W57: 134968.4439
A58: 2004 | B58: 1 | C58: 3 | D58: 8 | E58: 0.04139793461 | F58: 0.04109327527 | G58: 0.001081523414 | H58: 0.01845871761 | I58: 0.0004120820968 | J58: 0.02020661482 | K58: 0.02717200769 | L58: 0.005939276015 | M58: 0.1557614315 | N58: 50111.47359 | O58: 43000.81435 | P58: 591.0880844 | Q58: 13.98457075 | R58: 21390.85413 | S58: 254.7618576 | T58: 15710.16536 | U58: 15932.00981 | V58: 0 | W58: 147005.1518
A59: 2004 | B59: 1 | C59: 3 | D59: 9 | E59: 0.04469057682 | F59: 0.0422726749 | G59: 0.001123814802 | H59: 0.01945015954 | I59: 0.0004120820968 | J59: 0.01992394003 | K59: 0.0277254441 | L59: 0.006171522697 | M59: 0.161770215 | N59: 54097.15922 | O59: 44234.96139 | P59: 614.2017174 | Q59: 14.53141689 | R59: 22539.78496 | S59: 254.7618576 | T59: 15490.3924 | U59: 16256.51121 | V59: 0 | W59: 153502.3042
A60: 2004 | B60: 1 | C60: 3 | D60: 10 | E60: 0.04779286344 | F60: 0.04342334492 | G60: 0.00116343268 | H60: 0.02017223107 | I60: 0.0004120820968 | J60: 0.02037678665 | K60: 0.02737239563 | L60: 0.006389087579 | M60: 0.1671022241 | N60: 57852.42275 | O60: 45439.04522 | P60: 635.8541897 | Q60: 15.04369338 | R60: 23376.55635 | S60: 254.7618576 | T60: 15842.46994 | U60: 16049.50509 | V60: 0 | W60: 159465.6591
A61: 2004 | B61: 1 | C61: 3 | D61: 11 | E61: 0.04927185857 | F61: 0.0436308792 | G61: 0.001139218997 | H61: 0.02163155879 | I61: 0.0004120820968 | J61: 0.02040521566 | K61: 0.0257779106 | L61: 0.006256116118 | M61: 0.16852484 | N61: 59642.7204 | O61: 45656.21319 | P61: 622.6206161 | Q61: 14.73059986 | R61: 25067.69584 | S61: 254.7618576 | T61: 15864.57282 | U61: 15114.59622 | V61: 0 | W61: 162237.9115
A62: 2004 | B62: 1 | C62: 3 | D62: 12 | E62: 0.05246199524 | F62: 0.04276156726 | G62: 0.001114776103 | H62: 0.02109857125 | I62: 0.0004120820968 | J62: 0.02000727199 | K62: 0.02242587142 | L62: 0.006121885929 | M62: 0.1664040213 | N62: 63504.32488 | O62: 44746.54801 | P62: 609.2617715 | Q62: 14.41454256 | R62: 24450.04412 | S62: 254.7618576 | T62: 15555.18102 | U62: 13149.16467 | V62: 0 | W62: 162283.7009
A63: 2004 | B63: 1 | C63: 3 | D63: 13 | E63: 0.05505330386 | F63: 0.04187300553 | G63: 0.001100339409 | H63: 0.01948930198 | I63: 0.0004120820968 | J63: 0.02078704323 | K63: 0.02140682776 | L63: 0.006042605619 | M63: 0.1661645095 | N63: 66641.0585 | O63: 43816.73948 | P63: 601.3716438 | Q63: 14.22786979 | R63: 22585.14511 | S63: 254.7618576 | T63: 16161.43473 | U63: 12551.65955 | V63: 0 | W63: 162626.3987
A64: 2004 | B64: 1 | C64: 3 | D64: 14 | E64: 0.05080288667 | F64: 0.04154311638 | G64: 0.001061103432 | H64: 0.02007015807 | I64: 0.0004120820968 | J64: 0.01929490035 | K64: 0.0195672091 | L64: 0.005827137982 | M64: 0.1585785941 | N64: 61496.00306 | O64: 43471.53697 | P64: 579.9278933 | Q64: 13.72053145 | R64: 23258.26922 | S64: 254.7618576 | T64: 15001.32891 | U64: 11473.01925 | V64: 0 | W64: 155548.5677
A65: 2004 | B65: 1 | C65: 3 | D65: 15 | E65: 0.04838487881 | F65: 0.04080419676 | G65: 0.001043917066 | H65: 0.02064888703 | I65: 0.0004120820968 | J65: 0.01825274002 | K65: 0.01849961813 | L65: 0.005732757619 | M65: 0.1537790775 | N65: 58569.04697 | O65: 42698.31688 | P65: 570.5349794 | Q65: 13.49830422 | R65: 23928.92831 | S65: 254.7618576 | T65: 14191.07389 | U65: 10847.04896 | V65: 0 | W65: 151073.2102
A66: 2004 | B66: 1 | C66: 3 | D66: 16 | E66: 0.0498972989 | F66: 0.04010291467 | G66: 0.001055832774 | H66: 0.02031847311 | I66: 0.0004120820968 | J66: 0.01749064122 | K66: 0.01637676139 | L66: 0.005798193722 | M66: 0.1514521979 | N66: 60399.80495 | O66: 41964.48146 | P66: 577.0473053 | Q66: 13.65237954 | R66: 23546.02869 | S66: 254.7618576 | T66: 13598.56009 | U66: 9602.335099 | V66: 0 | W66: 149956.6718
A67: 2004 | B67: 1 | C67: 3 | D67: 17 | E67: 0.05656610965 | F67: 0.03989172544 | G67: 0.001089314604 | H67: 0.01971561388 | I67: 0.0004120820968 | J67: 0.01735203088 | K67: 0.0151844201 | L67: 0.005982061983 | M67: 0.1561933586 | N67: 68472.28337 | O67: 41743.48889 | P67: 595.3462255 | Q67: 14.08531424 | R67: 22847.40628 | S67: 254.7618576 | T67: 13490.79382 | U67: 8903.218813 | V67: 0 | W67: 156321.3846
A68: 2004 | B68: 1 | C68: 3 | D68: 18 | E68: 0.063947628 | F68: 0.04052352141 | G68: 0.001130231086 | H68: 0.02052398724 | I68: 0.0004120820968 | J68: 0.01739503011 | K68: 0.01512196076 | L68: 0.006206758258 | M68: 0.1652611989 | N68: =E68*1000000*$N$8826 -> 77407.48184 | O68: =F68*1000000*$O$8826 -> 42404.61266 | P68: =G68*1000000*$P$8826 -> 617.7084276 | Q68: =G68*1000000*$Q$8826 -> 14.61438225 | R68: =H68*1000000*$R$8826 -> 23784.1884 | S68: =I68*1000000*$S$8826 -> 254.7618576 | T68: =J68*1000000*$T$8826 -> 13524.22471 | U68: =K68*1000000*$U$8826 -> 8866.596459 | V68: =L68*1000000*$V$8826 -> 0 | W68: =SUM(N68:V68) -> 166874.1887
A69: 2004 | B69: 1 | C69: 3 | D69: 19 | E69: 0.06716800043 | F69: 0.04030369606 | G69: 0.00117056189 | H69: 0.02096086225 | I69: 0.0004120820968 | J69: 0.01769733547 | K69: 0.01496200369 | L69: 0.006428238232 | M69: 0.1691027801 | N69: 81305.68617 | O69: 42174.58308 | P69: 639.7505374 | Q69: 15.13587719 | R69: 24290.46028 | S69: 254.7618576 | T69: 13759.25998 | U69: 8772.807378 | V69: 0 | W69: 171212.4452
A70: 2004 | B70: 1 | C70: 3 | D70: 20 | E70: 0.06575379597 | F70: 0.03934618473 | G70: 0.001149276153 | H70: 0.01952677092 | I70: 0.0004120820968 | J70: 0.01812649281 | K70: 0.01512925596 | L70: 0.006311345829 | M70: 0.1657552045 | N70: 79593.81648 | O70: 41172.62432 | P70: 628.1171823 | Q70: 14.86064329 | R70: 22628.56593 | S70: 254.7618576 | T70: 14092.91967 | U70: 8870.873922 | V70: 0 | W70: 167256.54
A71: 2004 | B71: 1 | C71: 3 | D71: 21 | E71: 0.06014657081 | F71: 0.03828365509 | G71: 0.001108206979 | H71: 0.02090316001 | I71: 0.0004120820968 | J71: 0.01799811752 | K71: 0.01481198681 | L71: 0.006085811036 | M71: 0.1597495904 | N71: 72806.36879 | O71: 40060.77234 | P71: 605.6715293 | Q71: 14.32960091 | R71: 24223.59214 | S71: 254.7618576 | T71: 13993.11092 | U71: 8684.846625 | V71: 0 | W71: 160643.4538
A72: 2004 | B72: 1 | C72: 3 | D72: 22 | E72: 0.05667179472 | F72: 0.03686818542 | G72: 0.001072102734 | H72: 0.02090572666 | I72: 0.0004120820968 | J72: 0.01795845668 | K72: 0.01532589235 | L72: 0.005887541567 | M72: 0.1551017822 | N72: 68600.2133 | O72: 38579.59694 | P72: 585.9393734 | Q72: 13.86275724 | R72: 24226.56649 | S72: 254.7618576 | T72: 13962.27555 | U72: 8986.16952 | V72: 0 | W72: 155209.3858
A73: 2004 | B73: 1 | C73: 3 | D73: 23 | E73: 0.05351463467 | F73: 0.03539080114 | G73: 0.001033223216 | H73: 0.02006711434 | I73: 0.0004120820968 | J73: 0.01784943783 | K73: 0.01551085927 | L73: 0.005674031449 | M73: 0.149452184 | N73: 64778.52644 | O73: 37033.63286 | P73: 564.690439 | Q73: 13.36002806 | R73: 23254.742 | S73: 254.7618576 | T73: 13877.51598 | U73: 9094.622852 | V73: 0 | W73: 148871.8525
A74: 2004 | B74: 1 | C74: 3 | D74: 24 | E74: 0.04500519015 | F74: 0.03404085626 | G74: 0.0009810527875 | H74: 0.0204582552 | I74: 0.0004120820968 | J74: 0.01768577722 | K74: 0.01536540362 | L74: 0.005387533191 | M74: 0.1393361505 | N74: 54477.99314 | O74: 35621.02389 | P74: 536.1775855 | Q74: 12.68544161 | R74: 23708.01494 | S74: 254.7618576 | T74: 13750.27372 | U74: 9009.336521 | V74: 0 | W74: 137370.2671
A75: 2004 | B75: 1 | C75: 4 | D75: 1 | E75: 0.038013163 | F75: 0.0344825206 | G75: 0.000987228683 | H75: 0.02234274931 | I75: 0.0004120820968 | J75: 0.01747497253 | K75: 0.01474080562 | L75: 0.005421448636 | M75: 0.1338749705 | N75: 46014.26694 | O75: 36083.19018 | P75: 539.5529153 | Q75: 12.76529864 | R75: 25891.85779 | S75: 254.7618576 | T75: 13586.37806 | U75: 8643.11031 | V75: 0 | W75: 131025.8833
A76: 2004 | B76: 1 | C76: 4 | D76: 2 | E76: 0.03558279532 | F76: 0.03361166434 | G76: 0.0009684766831 | H76: 0.02177359345 | I76: 0.0004120820968 | J76: 0.01734017111 | K76: 0.01492421306 | L76: 0.005318470465 | M76: 0.1299314665 | N76: 43072.3495 | O76: 35171.909 | P76: 529.3043312 | Q76: 12.52282708 | R76: 25232.29247 | S76: 254.7618576 | T76: 13481.57314 | U76: 8750.649259 | V76: 0 | W76: 126505.3624
A77: 2004 | B77: 1 | C77: 4 | D77: 3 | E77: 0.03383924941 | F77: 0.03322917596 | G77: 0.0009617702801 | H77: 0.02140430059 | I77: 0.0004120820968 | J77: 0.01738555627 | K77: 0.01543719603 | L77: 0.005281641694 | M77: 0.1279509723 | N77: 40961.81775 | O77: 34771.6656 | P77: 525.6390616 | Q77: 12.43611035 | R77: 24804.33806 | S77: 254.7618576 | T77: 13516.85903 | U77: 9051.431218 | V77: 0 | W77: 123898.9487
A78: 2004 | B78: 1 | C78: 4 | D78: 4 | E78: 0.03349332195 | F78: 0.03305931074 | G78: 0.0009460619984 | H78: 0.02113114268 | I78: 0.0004120820968 | J78: 0.0173434795 | K78: 0.01552392257 | L78: 0.005195378355 | M78: 0.1271046999 | N78: 40543.07864 | O78: 34593.91529 | P78: 517.0539695 | Q78: 12.2329954 | R78: 24487.78947 | S78: 254.7618576 | T78: 13484.14533 | U78: 9102.282374 | V78: 0 | W78: 122995.2599
A79: 2004 | B79: 1 | C79: 4 | D79: 5 | E79: 0.03245259793 | F79: 0.03316858146 | G79: 0.0009558377907 | H79: 0.02149184671 | I79: 0.0004120820968 | J79: 0.01789616249 | K79: 0.01545507415 | L79: 0.005249062933 | M79: 0.1270812456 | N79: 39283.30046 | O79: 34708.25833 | P79: 522.3967612 | Q79: 12.35940067 | R79: 24905.79074 | S79: 254.7618576 | T79: 13913.84329 | U79: 9061.913857 | V79: 0 | W79: 122662.6247
A80: 2004 | B80: 1 | C80: 4 | D80: 6 | E80: 0.03448535796 | F80: 0.03388536905 | G80: 0.0009774529006 | H80: 0.02106681485 | I80: 0.0004120820968 | J80: 0.01903792829 | K80: 0.01615751119 | L80: 0.005367764112 | M80: 0.1313902805 | N80: 41743.92083 | O80: 35458.31901 | P80: 534.210129 | Q80: 12.63889349 | R80: 24413.24327 | S80: 254.7618576 | T80: 14801.53921 | U80: 9473.780139 | V80: 0 | W80: 126692.4133
A81: 2004 | B81: 1 | C81: 4 | D81: 7 | E81: 0.037464214 | F81: 0.03559290157 | G81: 0.001003891407 | H81: 0.02090193475 | I81: 0.0004120820968 | J81: 0.01994204314 | K81: 0.01847103438 | L81: 0.005512953376 | M81: 0.1393010547 | N81: 45349.7738 | O81: 37245.11474 | P81: 548.6596417 | Q81: 12.98075495 | R81: 24222.17224 | S81: 254.7618576 | T81: 15504.46714 | U81: 10830.28918 | V81: 0 | W81: 133968.2194
A82: 2004 | B82: 1 | C82: 4 | D82: 8 | E82: 0.04112966792 | F82: 0.03731117645 | G82: 0.001067498735 | H82: 0.02108129939 | I82: 0.0004120820968 | J82: 0.02020715218 | K82: 0.02132613487 | L82: 0.005862258318 | M82: 0.1483972699 | N82: 49786.74147 | O82: 39043.15149 | P82: 583.4231362 | Q82: 13.80322551 | R82: 24430.02865 | S82: 254.7618576 | T82: 15710.58315 | U82: 12504.34616 | V82: 0 | W82: 142326.8391
A83: 2004 | B83: 1 | C83: 4 | D83: 9 | E83: 0.04823420666 | F83: 0.03828942842 | G83: 0.001109129805 | H83: 0.02054642405 | I83: 0.0004120820968 | J83: 0.02032637211 | K83: 0.02219869732 | L83: 0.006090878812 | M83: 0.1572072193 | N83: 58386.66097 | O83: 40066.81366 | P83: 606.175884 | Q83: 14.34153346 | R83: 23810.18926 | S83: 254.7618576 | T83: 15803.27383 | U83: 13015.96362 | V83: 0 | W83: 151958.1806
A84: 2004 | B84: 1 | C84: 4 | D84: 10 | E84: 0.05326631675 | F84: 0.0397860541 | G84: 0.001136987001 | H84: 0.020585194 | I84: 0.0004120820968 | J84: 0.020593246 | K84: 0.02041480187 | L84: 0.006243858929 | M84: 0.1624385407 | N84: 64477.94196 | O84: 41632.91231 | P84: 621.4007573 | Q84: 14.70173919 | R84: 23855.11775 | S84: 254.7618576 | T84: 16010.76197 | U84: 11969.99602 | V84: 0 | W84: 158837.5944
A85: 2004 | B85: 1 | C85: 4 | D85: 11 | E85: 0.05173312878 | F85: 0.04061465032 | G85: 0.00112715959 | H85: 0.02265522064 | I85: 0.0004120820968 | J85: 0.02057212951 | K85: 0.0175139648 | L85: 0.006189890879 | M85: 0.1608182266 | N85: 62622.04482 | O85: 42499.97175 | P85: 616.0297539 | Q85: 14.57466646 | R85: 26253.96468 | S85: 254.7618576 | T85: 15994.34439 | U85: 10269.1219 | V85: 0 | W85: 158524.8138
A86: 2004 | B86: 1 | C86: 4 | D86: 12 | E86: 0.05282032336 | F86: 0.0406833913 | G86: 0.001117873785 | H86: 0.0231285923 | I86: 0.0004120820968 | J86: 0.02042602735 | K86: 0.01727981469 | L86: 0.006138897108 | M86: 0.162007002 | N86: 63938.07478 | O86: 42571.90368 | P86: 610.9547565 | Q86: 14.45459694 | R86: 26802.53063 | S86: 254.7618576 | T86: 15880.75341 | U86: 10131.83054 | V86: 0 | W86: 160205.2643
A87: 2004 | B87: 1 | C87: 4 | D87: 13 | E87: 0.05314762902 | F87: 0.04080458155 | G87: 0.001094891615 | H87: 0.02322124347 | I87: 0.0004120820968 | J87: 0.02019242259 | K87: 0.01726326134 | L87: 0.006012688602 | M87: 0.1621488003 | N87: 64334.27254 | O87: 42698.71954 | P87: 598.3942452 | Q87: 14.15742743 | R87: 26909.89929 | S87: 254.7618576 | T87: 15699.13124 | U87: 10122.12466 | V87: 0 | W87: 160631.4608
A88: 2004 | B88: 1 | C88: 4 | D88: 14 | E88: 0.05118062954 | F88: 0.04112714057 | G88: 0.001075959076 | H88: 0.02304810994 | I88: 0.0004120820968 | J88: 0.01937475589 | K88: 0.01706812895 | L88: 0.005908718987 | M88: 0.159195525 | N88: 61953.25418 | O88: 43036.25166 | P88: 588.0469906 | Q88: 13.91262142 | R88: 26709.26379 | S88: 254.7618576 | T88: 15063.41471 | U88: 10007.71091 | V88: 0 | W88: 157626.6167
A89: 2004 | B89: 1 | C89: 4 | D89: 15 | E89: 0.05138054874 | F89: 0.04095413116 | G89: 0.001038506557 | H89: 0.02259324969 | I89: 0.0004120820968 | J89: 0.01908937984 | K89: 0.01639237667 | L89: 0.005703045355 | M89: 0.1575633201 | N89: 62195.25286 | O89: 42855.21121 | P89: 567.5779583 | Q89: 13.42834397 | R89: 26182.14974 | S89: 254.7618576 | T89: 14841.54157 | U89: 9611.490946 | V89: 0 | W89: 156521.4145
A90: 2004 | B90: 1 | C90: 4 | D90: 16 | E90: 0.05511384266 | F90: 0.04078996025 | G90: 0.001056123723 | H90: 0.02180774946 | I90: 0.0004120820968 | J90: 0.01855129286 | K90: 0.01562762831 | L90: 0.005799791496 | M90: 0.1591584709 | N90: 66714.33966 | O90: 42683.41952 | P90: 577.2063188 | Q90: 13.65614164 | R90: 25271.87411 | S90: 254.7618576 | T90: 14423.19167 | U90: 9163.089107 | V90: 0 | W90: 159101.5384
A91: 2004 | B91: 1 | C91: 4 | D91: 17 | E91: 0.05831710761 | F91: 0.04116489091 | G91: 0.001103300336 | H91: 0.02273286874 | I91: 0.0004120820968 | J91: 0.01817373124 | K91: 0.01564772606 | L91: 0.0060588658 | M91: 0.1636105728 | N91: 70591.83568 | O91: 43075.75437 | P91: 602.989888 | Q91: 14.26615588 | R91: 26343.94704 | S91: 254.7618576 | T91: 14129.64643 | U91: 9174.873201 | V91: 0 | W91: 164188.0746
A92: 2004 | B92: 1 | C92: 4 | D92: 18 | E92: 0.06972783071 | F92: 0.0414358979 | G92: 0.001176399738 | H92: 0.02288387923 | I92: 0.0004120820968 | J92: 0.0191678818 | K92: 0.01596643032 | L92: 0.006460297258 | M92: 0.1772306991 | N92: 84404.31581 | O92: 43359.34143 | P92: 642.9411129 | Q92: 15.21136311 | R92: 26518.9453 | S92: 254.7618576 | T92: 14902.575 | U92: 9361.74196 | V92: 0 | W92: 179459.8338
A93: 2004 | B93: 1 | C93: 4 | D93: 19 | E93: 0.07318577115 | F93: 0.04064932083 | G93: 0.001219140059 | H93: 0.02243696302 | I93: 0.0004120820968 | J93: 0.01962934952 | K93: 0.01598309161 | L93: 0.006695009296 | M93: 0.1802107276 | N93: 88590.09206 | O93: 42536.25165 | P93: 666.3001029 | Q93: 15.76401415 | R93: 26001.0372 | S93: 254.7618576 | T93: 15261.35523 | U93: 9371.511126 | V93: 0 | W93: 182697.0732
A94: 2004 | B94: 1 | C94: 4 | D94: 20 | E94: 0.0668789142 | F94: 0.04015345309 | G94: 0.0012077649 | H94: 0.02310824941 | I94: 0.0004120820968 | J94: 0.02039437447 | K94: 0.01610357752 | L94: 0.00663254166 | M94: 0.1748909574 | N94: 80955.75236 | O94: 42017.36587 | P94: 660.0832044 | Q94: 15.61692837 | R94: 26778.95631 | S94: 254.7618576 | T94: 15856.14406 | U94: 9442.156725 | V94: 0 | W94: 175980.8373
A95: 2004 | B95: 1 | C95: 4 | D95: 21 | E95: 0.06339066646 | F95: 0.03909972172 | G95: 0.0011946875 | H95: 0.02325919629 | I95: 0.0004120820968 | J95: 0.02170757435 | K95: 0.01589924911 | L95: 0.006560726031 | M95: 0.1715239036 | N95: 76733.28966 | O95: 40914.72056 | P95: 652.9359761 | Q95: 15.44783188 | R95: 26953.88085 | S95: 254.7618576 | T95: 16877.12592 | U95: 9322.350995 | V95: 0 | W95: 171724.5137
A96: 2004 | B96: 1 | C96: 4 | D96: 22 | E96: 0.06289718089 | F96: 0.03874432116 | G96: 0.001157441399 | H96: 0.02173593167 | I96: 0.0004120820968 | J96: 0.02220151178 | K96: 0.01581626743 | L96: 0.006356185961 | M96: 0.1693209224 | N96: 76135.93404 | O96: 40542.82241 | P96: 632.5797579 | Q96: 14.9662235 | R96: 25188.64818 | S96: 254.7618576 | T96: 17261.15059 | U96: 9273.695591 | V96: 0 | W96: 169304.5587
A97: 2004 | B97: 1 | C97: 4 | D97: 23 | E97: 0.05786166519 | F97: 0.03934115896 | G97: 0.001083748762 | H97: 0.02051887517 | I97: 0.0004120820968 | J97: 0.02255765438 | K97: 0.01602099833 | L97: 0.005951496697 | M97: 0.1637476796 | N97: 70040.53063 | O97: 41167.36526 | P97: 592.3043099 | Q97: 14.01334547 | R97: 23778.26429 | S97: 254.7618576 | T97: 17538.04305 | U97: 9393.737315 | V97: 0 | W97: 162779.0201
A98: 2004 | B98: 1 | C98: 4 | D98: 24 | E98: 0.04280251711 | F98: 0.04022578567 | G98: 0.001026357711 | H98: 0.02156472225 | I98: 0.0004120820968 | J98: 0.02492113222 | K98: 0.0167211507 | L98: 0.005636328958 | M98: 0.1533100767 | N98: 51811.69606 | O98: 42093.05611 | P98: 560.938215 | Q98: 13.27125408 | R98: 24990.24243 | S98: 254.7618576 | T98: 19375.59119 | U98: 9804.264008 | V98: 0 | W98: 148903.8211
A99: 2004 | B99: 1 | C99: 5 | D99: 1 | E99: 0.04023597425 | F99: 0.04111197063 | G99: 0.001119411195 | H99: 0.02081791652 | I99: 0.0004120820968 | J99: 0.02475487714 | K99: 0.0183646382 | L99: 0.006147339924 | M99: 0.15296421 | N99: 48704.94096 | O99: 43020.37754 | P99: 611.7950017 | Q99: 14.47447633 | R99: 24124.80786 | S99: 254.7618576 | T99: 19246.3318 | U99: 10767.90495 | V99: 0 | W99: 146745.3944
A100: 2004 | B100: 1 | C100: 5 | D100: 2 | E100: 0.03679157603 | F100: 0.04049465633 | G100: 0.001102098936 | H100: 0.0203766531 | I100: 0.0004120820968 | J100: 0.02524030412 | K100: 0.02164533156 | L100: 0.006052268211 | M100: 0.1521149704 | N100: 44535.55734 | O100: 42374.40768 | P100: 602.3332834 | Q100: 14.25062125 | R100: 23613.45048 | S100: 254.7618576 | T100: 19623.7398 | U100: 12691.50365 | V100: 0 | W100: 143710.0047
A101: 2004 | B101: 1 | C101: 5 | D101: 3 | E101: 0.0353334088 | F101: 0.04000120964 | G101: 0.001111059454 | H101: 0.02070970268 | I101: 0.0004120820968 | J101: 0.02584259288 | K101: 0.02332773339 | L101: 0.006101475643 | M101: 0.1528392646 | N101: 42770.47149 | O101: 41858.05532 | P101: 607.2305009 | Q101: 14.36648467 | R101: 23999.40443 | S101: 254.7618576 | T101: 20092.00507 | U101: 13677.96158 | V101: 0 | W101: 143274.2567
A102: 2004 | B102: 1 | C102: 5 | D102: 4 | E102: 0.03691498275 | F102: 0.03996637635 | G102: 0.001126478063 | H102: 0.01992693565 | I102: 0.0004120820968 | J102: 0.02696481386 | K102: 0.02364571412 | L102: 0.006186148216 | M102: 0.1551435311 | N102: 44684.939 | O102: 41821.60508 | P102: 615.657277 | Q102: 14.56585402 | R102: 23092.29616 | S102: 254.7618576 | T102: 20964.50536 | U102: 13864.40611 | V102: 0 | W102: 145312.7367
A103: 2004 | B103: 1 | C103: 5 | D103: 5 | E103: 0.03661051329 | F103: 0.04070578425 | G103: 0.001152175944 | H103: 0.02049786381 | I103: 0.0004120820968 | J103: 0.02725997768 | K103: 0.02414329857 | L103: 0.006327270276 | M103: 0.1571089659 | N103: 44316.38407 | O103: 42595.3361 | P103: 629.7020137 | Q103: 14.89813886 | R103: 23753.91531 | S103: 254.7618576 | T103: 21193.98825 | U103: 14156.15931 | V103: 0 | W103: 146915.1451
A104: 2004 | B104: 1 | C104: 5 | D104: 6 | E104: 0.03897457799 | F104: 0.04413522873 | G104: 0.001216589633 | H104: 0.02110532069 | I104: 0.0004120820968 | J104: 0.0283275856 | K104: 0.02527554239 | L104: 0.006681003417 | M104: 0.1661279305 | N104: 47178.04292 | O104: 46183.97449 | P104: 664.906211 | Q104: 15.73103603 | R104: 24457.8657 | S104: 254.7618576 | T104: 22024.02817 | U104: 14820.0381 | V104: 0 | W104: 155599.3485
A105: 2004 | B105: 1 | C105: 5 | D105: 7 | E105: 0.04653632585 | F105: 0.05221354779 | G105: 0.00133929674 | H105: 0.02152725539 | I105: 0.0004120820968 | J105: 0.0324610439 | K105: 0.02708078493 | L105: 0.007354859727 | M105: 0.1889251964 | N105: 56331.40605 | O105: 54637.28701 | P105: 731.9696771 | Q105: 17.31769258 | R105: 24946.82402 | S105: 254.7618576 | T105: 25237.69429 | U105: 15878.52234 | V105: 0 | W105: 178035.7829
A106: 2004 | B106: 1 | C106: 5 | D106: 8 | E106: 0.05460470975 | F106: 0.06276961172 | G106: 0.001515664973 | H106: 0.02153697097 | I106: 0.0004120820968 | J106: 0.03796755637 | K106: 0.03250065296 | L106: 0.008323400586 | M106: 0.2196306494 | N106: 66098.04321 | O106: 65683.36066 | P106: 828.3607119 | Q106: 19.59821097 | R106: 24958.08291 | S106: 254.7618576 | T106: 29518.87757 | U106: 19056.40274 | V106: 0 | W106: 206417.4879
A107: 2004 | B107: 1 | C107: 5 | D107: 9 | E107: 0.05727386827 | F107: 0.06763870179 | G107: 0.001588126166 | H107: 0.02088724562 | I107: 0.0004120820968 | J107: 0.03919172035 | K107: 0.03392568729 | L107: 0.008721327274 | M107: 0.2296387589 | N107: 69329.01277 | O107: 70778.47262 | P107: 867.9631353 | Q107: 20.5351659 | R107: 24205.14977 | S107: 254.7618576 | T107: 30470.63613 | U107: 19891.95606 | V107: 0 | W107: 215818.4875
A108: 2004 | B108: 1 | C108: 5 | D108: 10 | E108: 0.05045833153 | F108: 0.06950008257 | G108: 0.001613621172 | H108: 0.02316648401 | I108: 0.0004120820968 | J108: 0.03928775589 | K108: 0.0328055064 | L108: 0.008861335222 | M108: 0.2261051989 | N108: 61078.92511 | O108: 72726.25821 | P108: 881.8969935 | Q108: 20.86482747 | R108: 26846.44138 | S108: 254.7618576 | T108: 30545.30149 | U108: 19235.15023 | V108: 0 | W108: 211589.6001
A109: 2004 | B109: 1 | C109: 5 | D109: 11 | E109: 0.0495793959 | F109: 0.07131423839 | G109: 0.001601820494 | H109: 0.02395908685 | I109: 0.0004120820968 | J109: 0.04059961239 | K109: 0.03332924332 | L109: 0.008796530818 | M109: 0.2295920103 | N109: 60014.98895 | O109: 74624.62666 | P109: 875.4475355 | Q109: 20.71223955 | R109: 27764.94786 | S109: 254.7618576 | T109: 31565.23891 | U109: 19542.23765 | V109: 0 | W109: 214662.9617
A110: 2004 | B110: 1 | C110: 5 | D110: 12 | E110: 0.05000562663 | F110: 0.07116391774 | G110: 0.001573316187 | H110: 0.02457988029 | I110: 0.0004120820968 | J110: 0.03994561981 | K110: 0.03070185529 | L110: 0.008639997037 | M110: 0.2270222951 | N110: 60530.93377 | O110: 74467.32817 | P110: 859.868995 | Q110: 20.34366639 | R110: 28484.3533 | S110: 254.7618576 | T110: 31056.77514 | U110: 18001.69738 | V110: 0 | W110: 213676.0623
A111: 2004 | B111: 1 | C111: 5 | D111: 13 | E111: 0.05180931492 | F111: 0.06958076347 | G111: 0.001529088799 | H111: 0.02284685673 | I111: 0.0004120820968 | J111: 0.03955004036 | K111: 0.03424948226 | L111: 0.008397118647 | M111: 0.2283747473 | N111: 62714.26681 | O111: 72810.68428 | P111: 835.697274 | Q111: 19.77178692 | R111: 26476.04183 | S111: 254.7618576 | T111: 30749.22146 | U111: 20081.80969 | V111: 0 | W111: 213942.255
A112: 2004 | B112: 1 | C112: 5 | D112: 14 | E112: 0.04993298683 | F112: 0.07127138121 | G112: 0.001510795991 | H112: 0.02351090309 | I112: 0.0004120820968 | J112: 0.04108098165 | K112: 0.03345063311 | L112: 0.008296662167 | M112: 0.2294664261 | N112: 60443.00457 | O112: 74579.78006 | P112: 825.6996534 | Q112: 19.53525291 | R112: 27245.57086 | S112: 254.7618576 | T112: 31939.49213 | U112: 19613.41323 | V112: 0 | W112: 214921.2576
A113: 2004 | B113: 1 | C113: 5 | D113: 15 | E113: 0.05045255394 | F113: 0.06949170931 | G113: 0.001491116862 | H113: 0.02303826572 | I113: 0.0004120820968 | J113: 0.04011991892 | K113: 0.03420875513 | L113: 0.008188592589 | M113: 0.2274029946 | N113: 61071.93144 | O113: 72717.49626 | P113: 814.9443627 | Q113: 19.28079316 | R113: 26697.85583 | S113: 254.7618576 | T113: 31192.28858 | U113: 20057.92979 | V113: 0 | W113: 212826.4889
A114: 2004 | B114: 1 | C114: 5 | D114: 16 | E114: 0.05505675231 | F114: 0.06707139106 | G114: 0.001503729193 | H114: 0.0221050982 | I114: 0.0004120820968 | J114: 0.03737480815 | K114: 0.03414905157 | L114: 0.008257854256 | M114: 0.2259307668 | N114: 66645.2328 | O114: 70184.82747 | P114: 821.837416 | Q114: 19.44387612 | R114: 25616.4562 | S114: 254.7618576 | T114: 29058.02984 | U114: 20022.92326 | V114: 0 | W114: 212623.5127
A115: 2004 | B115: 1 | C115: 5 | D115: 17 | E115: 0.06108807347 | F115: 0.06530753369 | G115: 0.00152286717 | H115: 0.02245479933 | I115: 0.0004120820968 | J115: 0.03732362981 | K115: 0.0300591229 | L115: 0.008362952054 | M115: 0.2265310605 | N115: 73946.04124 | O115: 68339.0923 | P115: 832.2969494 | Q115: 19.69133854 | R115: 26021.70677 | S115: 254.7618576 | T115: 29018.23989 | U115: 17624.83827 | V115: 0 | W115: 216056.6686
A116: 2004 | B116: 1 | C116: 5 | D116: 18 | E116: 0.07320849095 | F116: 0.06317775794 | G116: 0.00156574205 | H116: 0.0228921505 | I116: 0.0004120820968 | J116: 0.0353007024 | K116: 0.02975651761 | L116: 0.008598403031 | M116: 0.2349118466 | N116: 88617.59397 | O116: 66110.45292 | P116: 855.72948 | Q116: 20.24572948 | R116: 26528.53044 | S116: 254.7618576 | T116: 27445.46165 | U116: 17447.40897 | V116: 0 | W116: 227280.185
A117: 2004 | B117: 1 | C117: 5 | D117: 19 | E117: 0.0726653385 | F117: 0.06215756369 | G117: 0.001548463613 | H117: 0.0232077715 | I117: 0.0004120820968 | J117: 0.03584923792 | K117: 0.03457319362 | L117: 0.008503517057 | M117: 0.238917168 | N117: 87960.11746 | O117: 65042.90152 | P117: 846.2862469 | Q117: 20.02231174 | R117: 26894.28732 | S117: 254.7618576 | T117: 27871.93505 | U117: 20271.61431 | V117: 0 | W117: 229161.9261
A118: 2004 | B118: 1 | C118: 5 | D118: 20 | E118: 0.07420518212 | F118: 0.06164748602 | G118: 0.001537880026 | H118: 0.02271019462 | I118: 0.0004120820968 | J118: 0.03540676462 | K118: 0.03405507763 | L118: 0.008445396403 | M118: 0.2384200635 | N118: 89824.07115 | O118: 64509.14618 | P118: 840.5019684 | Q118: 19.88546133 | R118: 26317.67118 | S118: 254.7618576 | T118: 27527.92252 | U118: 19967.82267 | V118: 0 | W118: 229261.783
A119: 2004 | B119: 1 | C119: 5 | D119: 21 | E119: 0.0697075136 | F119: 0.05990553988 | G119: 0.001466365726 | H119: 0.02231022577 | I119: 0.0004120820968 | J119: 0.03400069734 | K119: 0.03495837772 | L119: 0.008052669665 | M119: 0.2308134718 | N119: 84379.72231 | O119: 62686.33935 | P119: 801.4170539 | Q119: 18.96075016 | R119: 25854.16794 | S119: 254.7618576 | T119: 26434.73845 | U119: 20497.46281 | V119: 0 | W119: 220927.5705
A120: 2004 | B120: 1 | C120: 5 | D120: 22 | E120: 0.06465293622 | F120: 0.05805514453 | G120: 0.001422341224 | H120: 0.02193153277 | I120: 0.0004120820968 | J120: 0.03528314541 | K120: 0.03390679793 | L120: 0.00781090544 | M120: 0.2234748856 | N120: 78261.24507 | O120: 60750.04913 | P120: 777.3562169 | Q120: 18.39149409 | R120: 25415.3202 | S120: 254.7618576 | T120: 27431.81151 | U120: 19880.88048 | V120: 0 | W120: 212789.816
A121: 2004 | B121: 1 | C121: 5 | D121: 23 | E121: 0.06000401726 | F121: 0.05515527995 | G121: 0.001382509608 | H121: 0.02013958225 | I121: 0.0004120820968 | J121: 0.03478468827 | K121: 0.03203132712 | L121: 0.007592166797 | M121: 0.2115016533 | N121: 72633.81023 | O121: 57715.5736 | P121: 755.5869296 | Q121: 17.87645387 | R121: 23338.72132 | S121: 254.7618576 | T121: 27044.27286 | U121: 18781.21866 | V121: 0 | W121: 200541.8219
A122: 2004 | B122: 1 | C122: 5 | D122: 24 | E122: 0.04534338524 | F122: 0.05209789725 | G122: 0.00127238093 | H122: 0.02120215072 | I122: 0.0004120820968 | J122: 0.03432503755 | K122: 0.03440070798 | L122: 0.006987385979 | M122: 0.1960410277 | N122: 54887.37236 | O122: 54516.268 | P122: 695.3979883 | Q122: 16.4524419 | R122: 24570.07702 | S122: 254.7618576 | T122: 26686.90529 | U122: 20170.47925 | V122: 0 | W122: 181797.7142
A123: 2004 | B123: 1 | C123: 6 | D123: 1 | E123: 0.03872060634 | F123: 0.05024512975 | G123: 0.001214196873 | H123: 0.02109326334 | I123: 0.0004120820968 | J123: 0.03270847654 | K123: 0.03360757507 | L123: 0.00666786338 | M123: 0.1846691934 | N123: 46870.61469 | O123: 52577.49551 | P123: 663.5984895 | Q123: 15.7000966 | R123: 24443.89306 | S123: 254.7618576 | T123: 25430.06732 | U123: 19705.43443 | V123: 0 | W123: 169961.5655
A124: 2004 | B124: 1 | C124: 6 | D124: 2 | E124: 0.03611913813 | F124: 0.04768657433 | G124: 0.001197129534 | H124: 0.02121951556 | I124: 0.0004120820968 | J124: 0.03102667161 | K124: 0.03448284371 | L124: 0.006574136664 | M124: 0.1787180916 | N124: 43721.58306 | O124: 49900.17262 | P124: 654.2706278 | Q124: 15.47940844 | R124: 24590.20023 | S124: 254.7618576 | T124: 24122.50375 | U124: 20218.63863 | V124: 0 | W124: 163477.6102
A125: 2004 | B125: 1 | C125: 6 | D125: 3 | E125: 0.03579179088 | F125: 0.0447201595 | G125: 0.00116024088 | H125: 0.02101707884 | I125: 0.0004120820968 | J125: 0.0293883755 | K125: 0.0335322398 | L125: 0.006371559545 | M125: 0.172393527 | N125: 43325.33495 | O125: 46796.05759 | P125: 634.1097663 | Q125: 15.00242201 | R125: 24355.60677 | S125: 254.7618576 | T125: 22848.76725 | U125: 19661.26242 | V125: 0 | W125: 157890.903
A126: 2004 | B126: 1 | C126: 6 | D126: 4 | E126: 0.03655480239 | F126: 0.04333545879 | G126: 0.001152999212 | H126: 0.02110573155 | I126: 0.0004120820968 | J126: 0.02889616624 | K126: 0.02911785147 | L126: 0.006331791317 | M126: 0.1669068831 | N126: 44248.947 | O126: 45347.07944 | P126: 630.1519564 | Q126: 14.90878407 | R126: 24458.34183 | S126: 254.7618576 | T126: 22466.08618 | U126: 17072.93405 | V126: 0 | W126: 154493.2111
A127: 2004 | B127: 1 | C127: 6 | D127: 5 | E127: 0.03754601007 | F127: 0.04326956577 | G127: 0.001178362142 | H127: 0.02105588933 | I127: 0.0004120820968 | J127: 0.03030448886 | K127: 0.02593800274 | L127: 0.006471073962 | M127: 0.166175475 | N127: 45448.7865 | O127: 45278.12769 | P127: 644.013631 | Q127: 15.23673785 | R127: 24400.58225 | S127: 254.7618576 | T127: 23561.02373 | U127: 15208.46449 | V127: 0 | W127: 154810.9969
A128: 2004 | B128: 1 | C128: 6 | D128: 6 | E128: 0.03961348705 | F128: 0.046258005 | G128: 0.001235208192 | H128: 0.02115721087 | I128: 0.0004120820968 | J128: 0.03249162992 | K128: 0.02560852706 | L128: 0.006783248788 | M128: 0.173559399 | N128: 47951.43112 | O128: 48405.28948 | P128: 675.0818655 | Q128: 15.97178214 | R128: 24517.99855 | S128: 254.7618576 | T128: 25261.4742 | U128: 15015.28003 | V128: 0 | W128: 162097.2889
A129: 2004 | B129: 1 | C129: 6 | D129: 7 | E129: 0.04640414175 | F129: 0.05422451621 | G129: 0.00135144974 | H129: 0.02128194734 | I129: 0.0004120820968 | J129: 0.03581738122 | K129: 0.02834260828 | L129: 0.007421598942 | M129: 0.1952557256 | N129: 56171.3995 | O129: 56741.60405 | P129: 738.6116911 | Q129: 17.47483619 | R129: 24662.54919 | S129: 254.7618576 | T129: 27847.16722 | U129: 16618.37868 | V129: 0 | W129: 183051.947
A130: 2004 | B130: 1 | C130: 6 | D130: 8 | E130: 0.05357878643 | F130: 0.06491540124 | G130: 0.001517805571 | H130: 0.02213204992 | I130: 0.0004120820968 | J130: 0.03982643003 | K130: 0.03433961958 | L130: 0.008335155859 | M130: 0.2250573307 | N130: 64856.18102 | O130: 67928.75717 | P130: 829.5306191 | Q130: 19.62588984 | R130: 25647.68915 | S130: 254.7618576 | T130: 30964.1079 | U130: 20134.66073 | V130: 0 | W130: 210635.3143
A131: 2004 | B131: 1 | C131: 6 | D131: 9 | E131: 0.05412067715 | F131: 0.06924297513 | G131: 0.00160875219 | H131: 0.02220827346 | I131: 0.0004120820968 | J131: 0.0409397135 | K131: 0.0347404588 | L131: 0.008834596803 | M131: 0.2321075291 | N131: 65512.13023 | O131: 72457.2159 | P131: 879.235935 | Q131: 20.80186941 | R131: 25736.02067 | S131: 254.7618576 | T131: 31829.65948 | U131: 20369.68843 | V131: 0 | W131: 217059.5144
A132: 2004 | B132: 1 | C132: 6 | D132: 10 | E132: 0.04686154273 | F132: 0.07088759203 | G132: 0.001594914767 | H132: 0.02413731479 | I132: 0.0004120820968 | J132: 0.04152980008 | K132: 0.03403826624 | L132: 0.008758607438 | M132: 0.2282201202 | N132: =E132*1000000*$N$8826 -> 56725.07536 | O132: =F132*1000000*$O$8826 -> 74178.17549 | P132: =G132*1000000*$P$8826 -> 871.6733284 | Q132: =G132*1000000*$Q$8826 -> 20.62294547 | R132: =H132*1000000*$R$8826 -> 27971.487 | S132: =I132*1000000*$S$8826 -> 254.7618576 | T132: =J132*1000000*$T$8826 -> 32288.43785 | U132: =K132*1000000*$U$8826 -> 19957.96549 | V132: =L132*1000000*$V$8826 -> 0 | W132: =SUM(N132:V132) -> 212268.1993
A133: 2004 | B133: 1 | C133: 6 | D133: 11 | E133: 0.04686760775 | F133: 0.07232988938 | G133: 0.001559658086 | H133: 0.02431142752 | I133: 0.0004120820968 | J133: 0.04206806298 | K133: 0.03516589884 | L133: 0.008564992435 | M133: 0.2312796191 | N133: 56732.41697 | O133: 75687.42391 | P133: 852.4043937 | Q133: 20.16706116 | R133: 28173.25725 | S133: 254.7618576 | T133: 32706.92453 | U133: 20619.14055 | V133: 0 | W133: 215046.4965
A134: 2004 | B134: 1 | C134: 6 | D134: 12 | E134: 0.04999851568 | F134: 0.07196727961 | G134: 0.001535655054 | H134: 0.02321449073 | I134: 0.0004120820968 | J134: 0.04140819604 | K134: 0.03168668071 | L134: 0.008433177785 | M134: 0.2286560777 | N134: 60522.32609 | O134: 75307.98189 | P134: 839.2859482 | Q134: 19.85669147 | R134: 26902.07388 | S134: 254.7618576 | T134: 32193.89358 | U134: 18579.13901 | V134: 0 | W134: 214619.3189
A135: 2004 | B135: 1 | C135: 6 | D135: 13 | E135: 0.048631253 | F135: 0.07059872115 | G135: 0.001495264469 | H135: 0.02292985503 | I135: 0.0004120820968 | J135: 0.04045741741 | K135: 0.03484643617 | L135: 0.008211369521 | M135: 0.2275823988 | N135: 58867.2786 | O135: 73875.8953 | P135: 817.2111664 | Q135: 19.33442354 | R135: 26572.22428 | S135: 254.7618576 | T135: 31454.68567 | U135: 20431.8271 | V135: 0 | W135: 212293.2184
A136: 2004 | B136: 1 | C136: 6 | D136: 14 | E136: 0.04651784253 | F136: 0.07223144402 | G136: 0.001502948186 | H136: 0.02330150324 | I136: 0.0004120820968 | J136: 0.04140527026 | K136: 0.03441320415 | L136: 0.008253565293 | M136: 0.2280378598 | N136: 56309.03231 | O136: 75584.40874 | P136: 821.4105703 | Q136: 19.43377736 | R136: 27002.90819 | S136: 254.7618576 | T136: 32191.61886 | U136: 20177.80624 | V136: 0 | W136: 212361.3805
A137: 2004 | B137: 1 | C137: 6 | D137: 15 | E137: 0.04747028949 | F137: 0.0705596626 | G137: 0.001477279142 | H137: 0.02295629609 | I137: 0.0004120820968 | J137: 0.0413213768 | K137: 0.03468875639 | L137: 0.008112601593 | M137: 0.2269983442 | N137: 57461.95264 | O137: 73835.02367 | P137: 807.3815938 | Q137: 19.10186539 | R137: 26602.86545 | S137: 254.7618576 | T137: 32126.39367 | U137: 20339.37328 | V137: 0 | W137: 211446.854
A138: 2004 | B138: 1 | C138: 6 | D138: 16 | E138: 0.04793907328 | F138: 0.06824385728 | G138: 0.001486866768 | H138: 0.02374908522 | I138: 0.0004120820968 | J138: 0.03878530587 | K138: 0.03450029095 | L138: 0.008165252842 | M138: 0.2232818143 | N138: 58029.4072 | O138: 71411.71926 | P138: 812.6215466 | Q138: 19.22583759 | R138: 27521.58782 | S138: 254.7618576 | T138: 30154.65848 | U138: 20228.86863 | V138: 0 | W138: 208432.8506
A139: 2004 | B139: 1 | C139: 6 | D139: 17 | E139: 0.05605517691 | F139: 0.06614092698 | G139: 0.001510427978 | H139: 0.0233297389 | I139: 0.0004120820968 | J139: 0.0386538252 | K139: 0.03298763491 | L139: 0.008294641196 | M139: 0.2273844542 | N139: 67853.80825 | O139: 69211.17149 | P139: 825.4985225 | Q139: 19.53049435 | R139: 27035.62904 | S139: 254.7618576 | T139: 30052.43537 | U139: 19341.93929 | V139: 0 | W139: 214594.7743
A140: 2004 | B140: 1 | C140: 6 | D140: 18 | E140: 0.06550114144 | F140: 0.06431139171 | G140: 0.001548030538 | H140: 0.02391424775 | I140: 0.0004120820968 | J140: 0.03701559295 | K140: 0.03077719964 | L140: 0.008501138785 | M140: 0.2319808249 | N140: 79287.9826 | O140: 67296.70967 | P140: 846.0495567 | Q140: 20.01671188 | R140: 27712.98614 | S140: 254.7618576 | T140: 28778.74851 | U140: 18045.87472 | V140: 0 | W140: 222243.1298
A141: 2004 | B141: 1 | C141: 6 | D141: 19 | E141: 0.07069125471 | F141: 0.06293633664 | G141: 0.001573257465 | H141: 0.02312206457 | I141: 0.0004120820968 | J141: 0.03631403573 | K141: 0.03567067046 | L141: 0.00863967456 | M141: 0.2393593762 | N141: 85570.52367 | O141: 65857.82491 | P141: 859.8369014 | Q141: 20.34290709 | R141: 26794.96598 | S141: 254.7618576 | T141: 28233.30436 | U141: 20915.10787 | V141: 0 | W141: 228506.6685
A142: 2004 | B142: 1 | C142: 6 | D142: 20 | E142: 0.07148018144 | F142: 0.06268932492 | G142: 0.00152858328 | H142: 0.02259728284 | I142: 0.0004120820968 | J142: 0.03526586763 | K142: 0.03512820238 | L142: 0.008394342548 | M142: 0.2374958671 | N142: 86525.50563 | O142: 65599.34696 | P142: 835.4209913 | Q142: 19.76525034 | R142: 26186.82355 | S142: 254.7618576 | T142: 27418.37844 | U142: 20597.03764 | V142: 0 | W142: 227437.0403
A143: 2004 | B143: 1 | C143: 6 | D143: 21 | E143: 0.07022289492 | F143: 0.06088873834 | G143: 0.001463917648 | H143: 0.02151716534 | I143: 0.0004120820968 | J143: 0.03503088992 | K143: 0.03534285347 | L143: 0.008039225839 | M143: 0.2329177676 | N143: 85003.58236 | O143: 63715.17763 | P143: 800.0790987 | Q143: 18.92909544 | R143: 24935.13118 | S143: 254.7618576 | T143: 27235.68883 | U143: 20722.89596 | V143: 0 | W143: 222686.246
A144: 2004 | B144: 1 | C144: 6 | D144: 22 | E144: 0.06449337333 | F144: 0.05876674149 | G144: 0.001431006856 | H144: 0.02113380018 | I144: 0.0004120820968 | J144: 0.03613413591 | K144: 0.03485052119 | L144: 0.007858493477 | M144: 0.2250801545 | N144: 78068.09699 | O144: 61494.67825 | P144: 782.0922691 | Q144: 18.50354449 | R144: 24490.86911 | S144: 254.7618576 | T144: 28093.4365 | U144: 20434.22231 | V144: 0 | W144: 213636.6608
A145: 2004 | B145: 1 | C145: 6 | D145: 23 | E145: 0.06089044016 | F145: 0.05573037034 | G145: 0.001392860276 | H145: 0.01964201861 | I145: 0.0004120820968 | J145: 0.0350827514 | K145: 0.03312151031 | L145: 0.007649008352 | M145: 0.2139210415 | N145: 73706.80959 | O145: 58317.35954 | P145: 761.2439096 | Q145: 18.01029253 | R145: 22762.12052 | S145: 254.7618576 | T145: 27276.0099 | U145: 19420.43567 | V145: 0 | W145: 202516.7513
A146: 2004 | B146: 1 | C146: 6 | D146: 24 | E146: 0.04725656325 | F146: 0.05289517881 | G146: 0.001281922378 | H146: 0.02063049415 | I146: 0.0004120820968 | J146: 0.03466527373 | K146: 0.03586517802 | L146: 0.007039783635 | M146: 0.2000464761 | N146: 57203.24078 | O146: 55350.55916 | P146: 700.6127031 | Q146: 16.57581699 | R146: 23907.61375 | S146: 254.7618576 | T146: 26951.43088 | U146: 21029.15525 | V146: 0 | W146: 185413.9502
A147: 2004 | B147: 1 | C147: 7 | D147: 1 | E147: 0.0388779875 | F147: 0.05029263471 | G147: 0.001219496745 | H147: 0.02110583067 | I147: 0.0004120820968 | J147: 0.03373904731 | K147: 0.03669585792 | L147: 0.006696968065 | M147: 0.189039905 | N147: 47061.12183 | O147: 52627.20564 | P147: 666.4950432 | Q147: 15.76862626 | R147: 24458.45669 | S147: 254.7618576 | T147: 26231.31173 | U147: 21516.21533 | V147: 0 | W147: 172831.3368
A148: 2004 | B148: 1 | C148: 7 | D148: 2 | E148: 0.03628591205 | F148: 0.04796205905 | G148: 0.001202354984 | H148: 0.02122973712 | I148: 0.0004120820968 | J148: 0.03179785496 | K148: 0.03659406092 | L148: 0.006602832656 | M148: 0.1820868938 | N148: 43923.45996 | O148: 50188.44528 | P148: 657.1265077 | Q148: 15.54697579 | R148: 24602.04547 | S148: 254.7618576 | T148: 24722.08057 | U148: 21456.52778 | V148: 0 | W148: 165819.9944
A149: 2004 | B149: 1 | C149: 7 | D149: 3 | E149: 0.03596293878 | F149: 0.04559128598 | G149: 0.001165305269 | H149: 0.02102616375 | I149: 0.0004120820968 | J149: 0.03017703419 | K149: 0.03649076524 | L149: 0.00639937106 | M149: 0.1772249464 | N149: 43532.50649 | O149: 47707.62154 | P149: 636.8776213 | Q149: 15.06790678 | R149: 24366.13481 | S149: 254.7618576 | T149: 23461.93074 | U149: 21395.96148 | V149: 0 | W149: 161370.8624
A150: 2004 | B150: 1 | C150: 7 | D150: 4 | E150: 0.03672937404 | F150: 0.04426474047 | G150: 0.001158031984 | H150: 0.02111913739 | I150: 0.0004120820968 | J150: 0.02940403892 | K150: 0.03342764733 | L150: 0.006359429207 | M150: 0.1728744814 | N150: 44460.26291 | O150: 46319.49813 | P150: 632.9025319 | Q150: 14.97386002 | R150: 24473.87716 | S150: 254.7618576 | T150: 22860.94518 | U150: 19599.93577 | V150: 0 | W150: 158617.1574
A151: 2004 | B151: 1 | C151: 7 | D151: 5 | E151: 0.03772926556 | F151: 0.04415490936 | G151: 0.001183505631 | H151: 0.0210675374 | I151: 0.0004120820968 | J151: 0.03098475442 | K151: 0.02826825947 | L151: 0.006499319865 | M151: 0.1702996338 | N151: 45670.61406 | O151: 46204.56869 | P151: 646.8247172 | Q151: 15.30324542 | R151: 24414.08059 | S151: 254.7618576 | T151: 24089.91412 | U151: 16574.78506 | V151: 0 | W151: 157870.8524
A152: 2004 | B152: 1 | C152: 7 | D152: 6 | E152: 0.03981578562 | F152: 0.04655826112 | G152: 0.001240599767 | H152: 0.02116693968 | I152: 0.0004120820968 | J152: 0.03338144758 | K152: 0.02690076573 | L152: 0.006812857072 | M152: 0.1762887387 | N152: 48196.31 | O152: 48719.48341 | P152: 678.0285384 | Q152: 16.04149756 | R152: 24529.27276 | S152: 254.7618576 | T152: 25953.2864 | U152: 15772.97005 | V152: 0 | W152: 164120.1545
A153: 2004 | B153: 1 | C153: 7 | D153: 7 | E153: 0.04665222981 | F153: 0.05429312705 | G153: 0.001357348792 | H153: 0.02129172791 | I153: 0.0004120820968 | J153: 0.03594620769 | K153: 0.02883678053 | L153: 0.007453994081 | M153: 0.1962434979 | N153: 56471.70575 | O153: 56813.39979 | P153: 741.8357172 | Q153: 17.55111352 | R153: 24673.88339 | S153: 254.7618576 | T153: 27947.32675 | U153: 16908.13118 | V153: 0 | W153: 183828.5955
A154: 2004 | B154: 1 | C154: 7 | D154: 8 | E154: 0.05383541369 | F154: 0.06460514024 | G154: 0.001524430687 | H154: 0.02214013483 | I154: 0.0004120820968 | J154: 0.04049094904 | K154: 0.033795002 | L154: 0.008371538236 | M154: 0.2251746908 | N154: 65166.82382 | O154: 67604.09393 | P154: 833.1514626 | Q154: 19.71155549 | R154: 25657.05834 | S154: 254.7618576 | T154: 31480.75572 | U154: 19815.33016 | V154: 0 | W154: 210831.6869
A155: 2004 | B155: 1 | C155: 7 | D155: 9 | E155: 0.05435540077 | F155: 0.06914547086 | G155: 0.001615774304 | H155: 0.02220901673 | I155: 0.0004120820968 | J155: 0.04199991873 | K155: 0.03463784957 | L155: 0.008873159326 | M155: 0.2332486724 | N155: 65796.25906 | O155: 72355.18551 | P155: 883.0737509 | Q155: 20.89266841 | R155: 25736.88202 | S155: 254.7618576 | T155: 32653.94399 | U155: 20309.52463 | V155: 0 | W155: 218010.5235
A156: 2004 | B156: 1 | C156: 7 | D156: 10 | E156: 0.04707334827 | F156: 0.07100338914 | G156: 0.001601876496 | H156: 0.02414322164 | I156: 0.0004120820968 | J156: 0.04186916025 | K156: 0.03326950114 | L156: 0.008796838356 | M156: 0.2281694174 | N156: 56981.46226 | O156: 74299.34787 | P156: 875.4781423 | Q156: 20.71296368 | R156: 27978.33215 | S156: 254.7618576 | T156: 32552.28236 | U156: 19507.20848 | V156: 0 | W156: 212469.5861
A157: 2004 | B157: 1 | C157: 7 | D157: 11 | E157: 0.04707732357 | F157: 0.07268907495 | G157: 0.001566465848 | H157: 0.02431578571 | I157: 0.0004120820968 | J157: 0.04196818826 | K157: 0.03478664607 | L157: 0.008602377827 | M157: 0.2314179443 | N157: 56986.27429 | O157: 76063.28278 | P157: 856.1250593 | Q157: 20.2550885 | R157: 28178.30773 | S157: 254.7618576 | T157: 32629.2743 | U157: 20396.76983 | V157: 0 | W157: 215385.0509
A158: 2004 | B158: 1 | C158: 7 | D158: 12 | E158: 0.05020566557 | F158: 0.07226494542 | G158: 0.001542358054 | H158: 0.02322036238 | I158: 0.0004120820968 | J158: 0.04073176207 | K158: 0.03131930463 | L158: 0.008469987868 | M158: 0.2281664681 | N158: 60773.0774 | O158: 75619.46526 | P158: 842.949358 | Q158: 19.94336419 | R158: 26908.87824 | S158: 254.7618576 | T158: 31667.98216 | U158: 18363.73206 | V158: 0 | W158: 214450.7897
A159: 2004 | B159: 1 | C159: 7 | D159: 13 | E159: 0.04882650728 | F159: 0.07082316479 | G159: 0.001501791174 | H159: 0.0229359006 | I159: 0.0004120820968 | J159: 0.04030678151 | K159: 0.03470084321 | L159: 0.008247211465 | M159: 0.2277542821 | N159: 59103.63049 | O159: 74110.75756 | P159: 820.7782251 | Q159: 19.41881669 | R159: 26579.23018 | S159: 254.7618576 | T159: 31337.56982 | U159: 20346.46026 | V159: 0 | W159: 212572.6072
A160: 2004 | B160: 1 | C160: 7 | D160: 14 | E160: 0.04670835865 | F160: 0.0718216654 | G160: 0.001509508546 | H160: 0.02330274548 | I160: 0.0004120820968 | J160: 0.04190352086 | K160: 0.03380014524 | L160: 0.008289592054 | M160: 0.2277476183 | N160: 56539.64872 | O160: 75155.6083 | P160: 824.9960222 | Q160: 19.51860568 | R160: 27004.34776 | S160: 254.7618576 | T160: 32578.99692 | U160: 19818.34584 | V160: 0 | W160: 212196.224
A161: 2004 | B161: 1 | C161: 7 | D161: 15 | E161: 0.04765741663 | F161: 0.07086395748 | G161: 0.001483727349 | H161: 0.02295498759 | I161: 0.0004120820968 | J161: 0.04056745005 | K161: 0.03414068923 | L161: 0.008148012463 | M161: 0.2262283229 | N161: 57688.46676 | O161: 74153.44383 | P161: 810.9057511 | Q161: 19.18524353 | R161: 26601.34911 | S161: 254.7618576 | T161: 31540.23345 | U161: 20018.02009 | V161: 0 | W161: 211086.3661
A162: 2004 | B162: 1 | C162: 7 | D162: 16 | E162: 0.04811773405 | F162: 0.06912302219 | G162: 0.001493356939 | H162: 0.02374876224 | I162: 0.0004120820968 | J162: 0.03823301226 | K162: 0.03346275963 | L162: 0.008200894161 | M162: 0.2227916236 | N162: 58245.67292 | O162: 72331.69478 | P162: 816.1686387 | Q162: 19.30975835 | R162: 27521.21353 | S162: 254.7618576 | T162: 29725.26325 | U162: 19620.52348 | V162: 0 | W162: 208534.6082
A163: 2004 | B163: 1 | C163: 7 | D163: 17 | E163: 0.05625457367 | F163: 0.06685873012 | G163: 0.001517020944 | H163: 0.0233311033 | I163: 0.0004120820968 | J163: 0.03759415979 | K163: 0.03067276779 | L163: 0.008330847014 | M163: 0.2249712847 | N163: 68095.17454 | O163: 69962.29487 | P163: 829.1017946 | Q163: 19.61574427 | R163: 27037.21016 | S163: 254.7618576 | T163: 29228.57056 | U163: 17984.64225 | V163: 0 | W163: 213411.3718
A164: 2004 | B164: 1 | C164: 7 | D164: 18 | E164: 0.06571780799 | F164: 0.06468628479 | G164: 0.00155478759 | H164: 0.02391836578 | I164: 0.0004120820968 | J164: 0.03666683798 | K164: 0.0295137749 | L164: 0.008538245704 | M164: 0.2310081868 | N164: 79550.25366 | O164: 67689.00519 | P164: 849.7425081 | Q164: 20.10408353 | R164: 27717.75831 | S164: 254.7618576 | T164: 28507.59977 | U164: 17305.07943 | V164: 0 | W164: 221894.3048
A165: 2004 | B165: 1 | C165: 7 | D165: 19 | E165: 0.07091532981 | F165: 0.06354884617 | G165: 0.001580124701 | H165: 0.02312087823 | I165: 0.0004120820968 | J165: 0.03609040008 | K165: 0.03439868807 | L165: 0.008677386559 | M165: 0.2387437357 | N165: 85841.76265 | O165: 66498.76697 | P165: 863.5900715 | Q165: 20.43170345 | R165: 26793.59119 | S165: 254.7618576 | T165: 28059.43293 | U165: 20169.29489 | V165: 0 | W165: 228501.6323
A166: 2004 | B166: 1 | C166: 7 | D166: 20 | E166: 0.07171997919 | F166: 0.06264643954 | G166: 0.001535255336 | H166: 0.02259638843 | I166: 0.0004120820968 | J166: 0.03588407673 | K166: 0.03399330622 | L166: 0.0084309827 | M166: 0.2372185102 | N166: 86815.77661 | O166: 65554.47086 | P166: 839.0674892 | Q166: 19.85152294 | R166: 26185.78707 | S166: 254.7618576 | T166: 27899.0214 | U166: 19931.60367 | V166: 0 | W166: 227500.3405
A167: 2004 | B167: 1 | C167: 7 | D167: 21 | E167: 0.07045402842 | F167: 0.06124203187 | G167: 0.001470307589 | H167: 0.02151725436 | I167: 0.0004120820968 | J167: 0.03559556733 | K167: 0.03494570645 | L167: 0.00807431673 | M167: 0.2337112949 | N167: 85283.36541 | O167: 64084.87095 | P167: 803.5714111 | Q167: 19.01172016 | R167: 24935.23435 | S167: 254.7618576 | T167: 27674.71217 | U167: 20490.03314 | V167: 0 | W167: 223545.561
A168: 2004 | B168: 1 | C168: 7 | D168: 22 | E168: 0.06471365067 | F168: 0.05906784805 | G168: 0.001437253097 | H168: 0.02113311281 | I168: 0.0004120820968 | J168: 0.03638811872 | K168: 0.03422460814 | L168: 0.007892795232 | M168: 0.2252694688 | N168: 78334.73885 | O168: 61809.76209 | P168: 785.5060452 | Q168: 18.58431113 | R168: 24490.07255 | S168: 254.7618576 | T168: 28290.90214 | U168: 20067.22503 | V168: 0 | W168: 214051.5529
A169: 2004 | B169: 1 | C169: 7 | D169: 23 | E169: 0.0611172834 | F169: 0.05615925262 | G169: 0.001398940016 | H169: 0.01963839333 | I169: 0.0004120820968 | J169: 0.03603622587 | K169: 0.03265604435 | L169: 0.007682395751 | M169: 0.2151006174 | N169: 73981.39935 | O169: 58766.15042 | P169: 764.5666873 | Q169: 18.08890623 | R169: 22757.91938 | S169: 254.7618576 | T169: 28017.31376 | U169: 19147.51479 | V169: 0 | W169: 203707.7151
A170: 2004 | B170: 1 | C170: 7 | D170: 24 | E170: 0.04744897664 | F170: 0.05285247268 | G170: 0.001287517878 | H170: 0.02062640097 | I170: 0.0004120820968 | J170: 0.03584268124 | K170: 0.0337670363 | L170: 0.00707051179 | M170: 0.1993076796 | N170: 57436.15381 | O170: 55305.87062 | P170: 703.6708277 | Q170: 16.64816926 | R170: 23902.87038 | S170: 254.7618576 | T170: 27866.83739 | U170: 19798.93278 | V170: 0 | W170: 185285.7458
A171: 2004 | B171: 1 | C171: 8 | D171: 1 | E171: 0.03803861977 | F171: 0.05052320754 | G171: 0.001191230858 | H171: 0.02110267331 | I171: 0.0004120820968 | J171: 0.03589262452 | K171: 0.03362842083 | L171: 0.006541743589 | M171: 0.1873306025 | N171: 46045.08191 | O171: 52868.4816 | P171: 651.0468071 | Q171: 15.40313597 | R171: 24454.79779 | S171: 254.7618576 | T171: 27905.66711 | U171: 19717.65711 | V171: 0 | W171: 171912.8973
A172: 2004 | B172: 1 | C172: 8 | D172: 2 | E172: 0.03539644725 | F172: 0.04766979757 | G172: 0.001174486391 | H172: 0.02122800006 | I172: 0.0004120820968 | J172: 0.03345147348 | K172: 0.03456764524 | L172: 0.006449789955 | M172: 0.180349722 | N172: 42846.77843 | O172: 49882.61709 | P172: 641.8954061 | Q172: 15.1866227 | R172: 24600.03248 | S172: 254.7618576 | T172: 26007.72988 | U172: 20268.36108 | V172: 0 | W172: 164517.3628
A173: 2004 | B173: 1 | C173: 8 | D173: 3 | E173: 0.03505014491 | F173: 0.0451171218 | G173: 0.001138295419 | H173: 0.02102525692 | I173: 0.0004120820968 | J173: 0.03102251218 | K173: 0.03318786458 | L173: 0.006251044213 | M173: 0.1732043221 | N173: 42427.58552 | O173: 47211.44678 | P173: 622.1158505 | Q173: 14.7186576 | R173: 24365.08393 | S173: 254.7618576 | T173: 24119.26988 | U173: 19459.34177 | V173: 0 | W173: 158474.3242
A174: 2004 | B174: 1 | C174: 8 | D174: 4 | E174: 0.03579832202 | F174: 0.04395471922 | G174: 0.001131190742 | H174: 0.02111604629 | I174: 0.0004120820968 | J174: 0.03037917942 | K174: 0.03002625632 | L174: 0.006212028288 | M174: 0.1690298244 | N174: 43333.24078 | O174: 45995.08578 | P174: 618.2329111 | Q174: 14.62679102 | R174: 24470.29504 | S174: 254.7618576 | T174: 23619.09387 | U174: 17605.56731 | V174: 0 | W174: 155910.9043
A175: 2004 | B175: 1 | C175: 8 | D175: 5 | E175: 0.03675189898 | F175: 0.0437817253 | G175: 0.001156073953 | H175: 0.02106261813 | I175: 0.0004120820968 | J175: 0.03137974762 | K175: 0.02594083859 | L175: 0.006348676515 | M175: 0.1668336612 | N175: 44487.52897 | O175: 45814.06152 | P175: 631.8324035 | Q175: 14.94854182 | R175: 24408.3799 | S175: 254.7618576 | T175: 24397.01199 | U175: 15210.12727 | V175: 0 | W175: 155218.6525
A176: 2004 | B176: 1 | C176: 8 | D176: 6 | E176: 0.03873685713 | F176: 0.04686073282 | G176: 0.001211844723 | H176: 0.02116209908 | I176: 0.0004120820968 | J176: 0.03389341976 | K176: 0.02527489313 | L176: 0.006654946351 | M176: 0.1742068751 | N176: 46890.28598 | O176: 49035.99577 | P176: 662.3129621 | Q176: 15.66968227 | R176: 24523.66325 | S176: 254.7618576 | T176: 26351.33267 | U176: 14819.65742 | V176: 0 | W176: 162553.6796
A177: 2004 | B177: 1 | C177: 8 | D177: 7 | E177: 0.04532909146 | F177: 0.05528012008 | G177: 0.001325887713 | H177: 0.02128976103 | I177: 0.0004120820968 | J177: 0.03609286028 | K177: 0.02785574703 | L177: 0.007281222937 | M177: 0.1948667726 | N177: 54870.06999 | O177: 57846.20877 | P177: 724.6412032 | Q177: 17.144308 | R177: 24671.60408 | S177: 254.7618576 | T177: 28061.34568 | U177: 16332.91291 | V177: 0 | W177: 182778.6888
A178: 2004 | B178: 1 | C178: 8 | D178: 8 | E178: 0.05246672192 | F178: 0.06615821244 | G178: 0.001489097022 | H178: 0.02215364833 | I178: 0.0004120820968 | J178: 0.04042365563 | K178: 0.03428809456 | L178: 0.00817750047 | M178: 0.2255690125 | N178: 63510.04644 | O178: 69229.25933 | P178: 813.8404538 | Q178: 19.25467575 | R178: 25672.71844 | S178: 254.7618576 | T178: 31428.43668 | U178: 20104.4496 | V178: 0 | W178: 211032.7675
A179: 2004 | B179: 1 | C179: 8 | D179: 9 | E179: 0.05310353477 | F179: 0.07070362127 | G179: 0.001578323437 | H179: 0.02221537493 | I179: 0.0004120820968 | J179: 0.04175805596 | K179: 0.03409213045 | L179: 0.008667494767 | M179: 0.2325306177 | N179: 64280.89722 | O179: 73985.66485 | P179: 862.6056214 | Q179: 20.40841232 | R179: 25744.2502 | S179: 254.7618576 | T179: 32465.9014 | U179: 19989.54818 | V179: 0 | W179: 217604.0377
A180: 2004 | B180: 1 | C180: 8 | D180: 10 | E180: 0.04594371812 | F180: 0.07196029317 | G180: 0.00156474776 | H180: 0.02413979513 | I180: 0.0004120820968 | J180: 0.04182851644 | K180: 0.03342204994 | L180: 0.008592942806 | M180: 0.2278641455 | N180: 55614.06478 | O180: 75300.67114 | P180: 855.186068 | Q180: 20.23287288 | R180: 27974.36134 | S180: 254.7618576 | T180: 32520.68275 | U180: 19596.6538 | V180: 0 | W180: 212136.6146
A181: 2004 | B181: 1 | C181: 8 | D181: 11 | E181: 0.04595883232 | F181: 0.07324550714 | G181: 0.001530157817 | H181: 0.02431052896 | I181: 0.0004120820968 | J181: 0.04237879675 | K181: 0.03446924777 | L181: 0.008402989248 | M181: 0.2307081421 | N181: 55632.36025 | O181: 76645.5444 | P181: 836.2815274 | Q181: 19.78560979 | R181: 28172.21596 | S181: 254.7618576 | T181: 32948.51269 | U181: 20210.6668 | V181: 0 | W181: 214720.1291
A182: 2004 | B182: 1 | C182: 8 | D182: 12 | E182: 0.04910086061 | F182: 0.0726718411 | G182: 0.001506608833 | H182: 0.02321461702 | I182: 0.0004120820968 | J182: 0.04161048588 | K182: 0.03133463366 | L182: 0.008273668041 | M182: 0.2281247972 | N182: 59435.73038 | O182: 76045.24893 | P182: 823.4112341 | Q182: 19.48111113 | R182: 26902.22024 | S182: 254.7618576 | T182: 32351.16915 | U182: 18372.72007 | V182: 0 | W182: 214204.743
A183: 2004 | B183: 1 | C183: 8 | D183: 13 | E183: 0.04778514537 | F183: 0.07110068706 | G183: 0.0014669822 | H183: 0.02292753204 | I183: 0.0004120820968 | J183: 0.04111378184 | K183: 0.03428947284 | L183: 0.008056055081 | M183: 0.2271517385 | N183: 57843.08016 | O183: 74401.16233 | P183: 801.753977 | Q183: 18.96872143 | R183: 26569.53229 | S183: 254.7618576 | T183: 31964.9935 | U183: 20105.25774 | V183: 0 | W183: 211959.5106
A184: 2004 | B184: 1 | C184: 8 | D184: 14 | E184: 0.04569226975 | F184: 0.07218582122 | G184: 0.001474520556 | H184: 0.02329829412 | I184: 0.0004120820968 | J184: 0.04140464563 | K184: 0.03344781102 | L184: 0.008097452592 | M184: 0.226012897 | N184: 55309.69094 | O184: 75536.66814 | P184: 805.8739363 | Q184: 19.06619567 | R184: 26999.18931 | S184: 254.7618576 | T184: 32191.13322 | U184: 19611.75852 | V184: 0 | W184: 210728.1421
A185: 2004 | B185: 1 | C185: 8 | D185: 15 | E185: 0.04665940105 | F185: 0.07075281965 | G185: 0.001449337107 | H185: 0.0229498323 | I185: 0.0004120820968 | J185: 0.04156000946 | K185: 0.03424904304 | L185: 0.007959155579 | M185: 0.2259916803 | N185: 56480.38642 | O185: 74037.14701 | P185: 792.1103536 | Q185: 18.74056266 | R185: 26595.3749 | S185: 254.7618576 | T185: 32311.92493 | U185: 20081.55216 | V185: 0 | W185: 210571.9982
A186: 2004 | B186: 1 | C186: 8 | D186: 16 | E186: 0.04716487729 | F186: 0.06844938389 | G186: 0.001458743452 | H186: 0.02374272288 | I186: 0.0004120820968 | J186: 0.03926249182 | K186: 0.0339051284 | L186: 0.008010811309 | M186: 0.2224062411 | N186: 57092.25653 | O186: 71626.78636 | P186: 797.2512304 | Q186: 18.86219082 | R186: 27514.21483 | S186: 254.7618576 | T186: 30525.65927 | U186: 19879.90157 | V186: 0 | W186: 207709.6939
A187: 2004 | B187: 1 | C187: 8 | D187: 17 | E187: 0.05519111887 | F187: 0.06536855024 | G187: 0.001481858905 | H187: 0.0233266126 | I187: 0.0004120820968 | J187: 0.03795324014 | K187: 0.02975993699 | L187: 0.008137751745 | M187: 0.2216311516 | N187: 66807.88116 | O187: 68402.94122 | P187: 809.8845849 | Q187: 19.16108373 | R187: 27032.00613 | S187: 254.7618576 | T187: 29507.74704 | U187: 17449.41388 | V187: 0 | W187: 210283.797
A188: 2004 | B188: 1 | C188: 8 | D188: 18 | E188: 0.06456224815 | F188: 0.06398466034 | G188: 0.0015187502 | H188: 0.02391060178 | I188: 0.0004120820968 | J188: 0.03654646314 | K188: 0.02935160882 | L188: 0.008340343369 | M188: 0.2286267579 | N188: 78151.46875 | O188: 66954.81152 | P188: 830.0468899 | Q188: 19.63810431 | R188: 27708.76101 | S188: 254.7618576 | T188: 28414.01117 | U188: 17209.99512 | V188: 0 | W188: 219543.4944
A189: 2004 | B189: 1 | C189: 8 | D189: 19 | E189: 0.06972025937 | F189: 0.06307043054 | G189: 0.001543500128 | H189: 0.02311792791 | I189: 0.0004120820968 | J189: 0.03591034559 | K189: 0.03411968331 | L189: 0.008476259665 | M189: 0.2363704886 | N189: 84395.15084 | O189: 65998.14341 | P189: 843.5735392 | Q189: 19.95813171 | R189: 26790.17222 | S189: 254.7618576 | T189: 27919.44482 | U189: 20005.7035 | V189: 0 | W189: 226226.9083
A190: 2004 | B190: 1 | C190: 8 | D190: 20 | E190: 0.07044105376 | F190: 0.06233330322 | G190: 0.001499670796 | H190: 0.02259449608 | I190: 0.0004120820968 | J190: 0.03563798125 | K190: 0.03351329962 | L190: 0.008235567233 | M190: 0.2346674541 | N190: 85267.65981 | O190: 65226.79883 | P190: 819.619369 | Q190: 19.39139928 | R190: 26183.59412 | S190: 254.7618576 | T190: 27707.68798 | U190: 19650.15705 | V190: 0 | W190: 225129.6704
A191: 2004 | B191: 1 | C191: 8 | D191: 21 | E191: 0.06922131316 | F191: 0.06049445548 | G191: 0.001436228308 | H191: 0.02151389617 | I191: 0.0004120820968 | J191: 0.03557112317 | K191: 0.03500420177 | L191: 0.007887167521 | M191: 0.2315404677 | N191: 83791.18521 | O191: 63302.59227 | P191: 784.9459647 | Q191: 18.57106016 | R191: 24931.34272 | S191: 254.7618576 | T191: 27655.70741 | U191: 20524.33123 | V191: 0 | W191: 221263.4377
A192: 2004 | B192: 1 | C192: 8 | D192: 22 | E192: 0.06353883456 | F192: 0.05898792544 | G192: 0.001403939876 | H192: 0.02112955172 | I192: 0.0004120820968 | J192: 0.03594263307 | K192: 0.03435118762 | L192: 0.007709852899 | M192: 0.2234760073 | N192: 76912.64455 | O192: 61726.12949 | P192: 767.2992751 | Q192: 18.15355661 | R192: 24485.94579 | S192: 254.7618576 | T192: 27944.54757 | U192: 20141.44353 | V192: 0 | W192: 212250.9256
A193: 2004 | B193: 1 | C193: 8 | D193: 23 | E193: 0.05990744924 | F193: 0.05596378548 | G193: 0.001366514977 | H193: 0.01963994406 | I193: 0.0004120820968 | J193: 0.03548753155 | K193: 0.03286812299 | L193: 0.007504330945 | M193: 0.2131497613 | N193: 72516.91632 | O193: 58561.60975 | P193: 746.845338 | Q193: 17.66963629 | R193: 22759.71644 | S193: 254.7618576 | T193: 27590.7169 | U193: 19271.86478 | V193: 0 | W193: 201720.101
A194: 2004 | B194: 1 | C194: 8 | D194: 24 | E194: 0.04642277312 | F194: 0.05251178584 | G194: 0.001257675406 | H194: 0.02062651277 | I194: 0.0004120820968 | J194: 0.03520972471 | K194: 0.03720150737 | L194: 0.006906629368 | M194: 0.2005486907 | N194: 56193.95246 | O194: 54949.36919 | P194: 687.3609363 | Q194: 16.26229305 | R194: 23902.99994 | S194: 254.7618576 | T194: 27374.72865 | U194: 21812.69736 | V194: 0 | W194: 185192.1327
A195: 2004 | B195: 1 | C195: 9 | D195: 1 | E195: 0.04019411004 | F195: 0.05036162105 | G195: 0.001243529137 | H195: 0.0219125266 | I195: 0.0004120820968 | J195: 0.03490230725 | K195: 0.03679178158 | L195: 0.006828943953 | M195: 0.1926469017 | N195: 48654.26507 | O195: 52699.39432 | P195: 679.6295355 | Q195: 16.0793756 | R195: 25393.29493 | S195: 254.7618576 | T195: 27135.71884 | U195: 21572.45913 | V195: 0 | W195: 176405.603
A196: 2004 | B196: 1 | C196: 9 | D196: 2 | E196: 0.03756301584 | F196: 0.04833860153 | G196: 0.001225528793 | H196: 0.02122844 | I196: 0.0004120820968 | J196: 0.03261867637 | K196: 0.03752949504 | L196: 0.006730093559 | M196: 0.1856459332 | N196: =E196*1000000*$N$8826 -> 45469.37169 | O196: =F196*1000000*$O$8826 -> 50582.46675 | P196: =G196*1000000*$P$8826 -> 669.7917557 | Q196: =G196*1000000*$Q$8826 -> 15.84662327 | R196: =H196*1000000*$R$8826 -> 24600.5423 | S196: =I196*1000000*$S$8826 -> 254.7618576 | T196: =J196*1000000*$T$8826 -> 25360.24981 | U196: =K196*1000000*$U$8826 -> 22005.00935 | V196: =L196*1000000*$V$8826 -> 0 | W196: =SUM(N196:V196) -> 168958.0401
A197: 2004 | B197: 1 | C197: 9 | D197: 3 | E197: 0.03693572005 | F197: 0.04571983725 | G197: 0.001193395 | H197: 0.0215210381 | I197: 0.0004120820968 | J197: 0.03030695227 | K197: 0.03601535477 | L197: 0.006553628157 | M197: 0.1786580077 | N197: 44710.04114 | O197: 47842.14013 | P197: 652.2295821 | Q197: 15.43111928 | R197: 24939.61913 | S197: 254.7618576 | T197: 23562.93897 | U197: 21117.20975 | V197: 0 | W197: 163094.3717
A198: 2004 | B198: 1 | C198: 9 | D198: 4 | E198: 0.03824597294 | F198: 0.0446450255 | G198: 0.001181691378 | H198: 0.01968688849 | I198: 0.0004120820968 | J198: 0.02935518348 | K198: 0.03118125534 | L198: 0.006489356743 | M198: 0.171197456 | N198: 46296.07929 | O198: 46717.43589 | P198: 645.8331683 | Q198: 15.27978634 | R198: 22814.11791 | S198: 254.7618576 | T198: 22822.96124 | U198: 18282.78837 | V198: 0 | W198: 157849.2575
A199: 2004 | B199: 1 | C199: 9 | D199: 5 | E199: 0.03896143219 | F199: 0.04464588624 | G199: 0.001205748987 | H199: 0.01891607712 | I199: 0.0004120820968 | J199: 0.02962467758 | K199: 0.0274215864 | L199: 0.006621471108 | M199: 0.1678089617 | N199: 47162.13015 | O199: 46718.33659 | P199: 658.981442 | Q199: 15.59086174 | R199: 21920.86444 | S199: 254.7618576 | T199: 23032.48653 | U199: 16078.34757 | V199: 0 | W199: 155841.4994
A200: 2004 | B200: 1 | C200: 9 | D200: 6 | E200: 0.04060729603 | F200: 0.04752883767 | G200: 0.001260673915 | H200: 0.02063460337 | I200: 0.0004120820968 | J200: 0.03195524853 | K200: 0.02704152878 | L200: 0.006923095931 | M200: 0.1763633663 | N200: 49154.41946 | O200: 49735.11386 | P200: 688.9997201 | Q200: 16.30106508 | R200: 23912.37572 | S200: 254.7618576 | T200: 24844.45035 | U200: 15855.50493 | V200: 0 | W200: 164461.927
... 2043 more rows

Sheet Input to CA model
A2: Feed into OEB Cost Allocation Model sheet "I6 Customer Data", row 56
D3: 1 | E3: 2 | F3: 3 | H3: 4 | I3: 5 | J3: 6 | K3: 7 | L3: 8 | M3: 9 | N3: 10 | O3: 11 | P3: 12 | Q3: 13 | R3: 14 | S3: 15 | T3: 16 | U3: 17 | V3: 18 | W3: 19 | X3: 20
B4: ID | C4: Total | D4: Residential | E4: GS>50kW | F4: Street Lighting | H4: GS<50 kW | I4: USL | J4: Industrial > 1 MW | K4: Industrial > 5 MW | L4: Embedded LDC
A6: kWh - 30 year weather normalized amount | C6: =SUM(D6:L6) -> 1538618367 | D6: ='Hourly load shapes by class'!N8787 -> 466068278.6 | E6: ='Hourly load shapes by class'!O8787 -> 493112062.4 | F6: ='Hourly load shapes by class'!P8787 -> 5367464.336 | H6: ='Hourly load shapes by class'!R8787 -> 195276256.2 | I6: ='Hourly load shapes by class'!S8787 -> 2273987.997 | J6: ='Hourly load shapes by class'!T8787 -> 231017191.8 | K6: ='Hourly load shapes by class'!U8787 -> 145503125.7 | L6: ='Hourly load shapes by class'!V8787 -> 0
A9: Feed into OEB Cost Allocation Model sheet "I8 Demand Data", row 40, 45, 50, 55, 61 and 67
D10: 1 | E10: 2 | F10: 3 | H10: 4 | I10: 5 | J10: 6 | K10: 7 | L10: 8 | M10: 9 | N10: 10 | O10: 11 | P10: 12 | Q10: 13 | R10: 14 | S10: 15 | T10: 16 | U10: 17 | V10: 18 | W10: 19 | X10: 20
A11: Customer Classes | C11: Total | D11: Residential | E11: GS>50kW | F11: Street Lighting | G11: Sentinel Lights | H11: GS<50 kW | I11: USL | J11: Industrial > 1 MW | K11: Industrial > 5 MW | L11: Embedded LDC
A13: CO-INCIDENT PEAK (kW)
A15: 1 CP
A16: Total Sytem CP | B16: DCP1 | C16: =SUM(D16:L16) -> 252809.7491 | D16: ='Hourly load shapes by class'!N8819 -> 96069.8189 | E16: ='Hourly load shapes by class'!O8819 -> 73928.57236 | F16: ='Hourly load shapes by class'!P8819 -> 626.3068208 | G16: ='Hourly load shapes by class'!Q8819 -> 14.81781189 | H16: ='Hourly load shapes by class'!R8819 -> 24307.97932 | I16: ='Hourly load shapes by class'!S8819 -> 285.756636 | J16: ='Hourly load shapes by class'!T8819 -> 36676.2776 | K16: ='Hourly load shapes by class'!U8819 -> 20900.2196 | L16: ='Hourly load shapes by class'!V8819 -> 0
A18: 4 CP
A19: Total Sytem CP | B19: DCP4 | C19: =SUM(D19:L19) -> 990441.1453 | D19: ='Hourly load shapes by class'!N8820 -> 366112.7221 | E19: ='Hourly load shapes by class'!O8820 -> 293094.635 | F19: ='Hourly load shapes by class'!P8820 -> 2790.081272 | G19: ='Hourly load shapes by class'!Q8820 -> 66.01061666 | H19: ='Hourly load shapes by class'!R8820 -> 97304.26317 | I19: ='Hourly load shapes by class'!S8820 -> 1059.859628 | J19: ='Hourly load shapes by class'!T8820 -> 143090.4554 | K19: ='Hourly load shapes by class'!U8820 -> 86923.11821 | L19: ='Hourly load shapes by class'!V8820 -> 0
A21: 12 CP
A22: Total Sytem CP | B22: DCP12 | C22: =SUM(D22:L22) -> 2736712.309 | D22: ='Hourly load shapes by class'!N8821 -> 927064.036 | E22: ='Hourly load shapes by class'!O8821 -> 850886.2129 | F22: ='Hourly load shapes by class'!P8821 -> 9222.812367 | G22: ='Hourly load shapes by class'!Q8821 -> 218.2027949 | H22: ='Hourly load shapes by class'!R8821 -> 286881.6639 | I22: ='Hourly load shapes by class'!S8821 -> 3106.550364 | J22: ='Hourly load shapes by class'!T8821 -> 399110.417 | K22: ='Hourly load shapes by class'!U8821 -> 260222.4139 | L22: ='Hourly load shapes by class'!V8821 -> 0
A24: NON CO_INCIDENT PEAK (kW)
A26: 1 NCP
A27: Classification NCP from Load Data Provider | B27: DNCP1 | C27: =SUM(D27:L27) -> 283557.3183 | D27: ='Hourly load shapes by class'!N8802 -> 102684.3553 | E27: ='Hourly load shapes by class'!O8802 -> 83134.10716 | F27: ='Hourly load shapes by class'!P8802 -> 995.1687836 | G27: ='Hourly load shapes by class'!Q8802 -> 23.54472815 | H27: ='Hourly load shapes by class'!R8802 -> 28743.32376 | I27: ='Hourly load shapes by class'!S8802 -> 285.756636 | J27: ='Hourly load shapes by class'!T8802 -> 41078.69657 | K27: ='Hourly load shapes by class'!U8802 -> 26612.36542 | L27: ='Hourly load shapes by class'!V8802 -> 0
A29: 4 NCP
A30: Classification NCP from Load Data Provider | B30: DNCP4 | C30: =SUM(D30:L30) -> 1095230.61 | D30: ='Hourly load shapes by class'!N8803 -> 387973.6796 | E30: ='Hourly load shapes by class'!O8803 -> 328082.696 | F30: ='Hourly load shapes by class'!P8803 -> 3775.219555 | G30: ='Hourly load shapes by class'!Q8803 -> 89.3180329 | H30: ='Hourly load shapes by class'!R8803 -> 114074.2546 | I30: ='Hourly load shapes by class'!S8803 -> 1096.441941 | J30: ='Hourly load shapes by class'!T8803 -> 156895.3904 | K30: ='Hourly load shapes by class'!U8803 -> 103243.6098 | L30: ='Hourly load shapes by class'!V8803 -> 0
A32: 12 NCP
A33: Classification NCP from Load Data Provider | B33: DNCP12 | C33: =SUM(D33:L33) -> 3061559.862 | D33: ='Hourly load shapes by class'!N8804 -> 1031415.779 | E33: ='Hourly load shapes by class'!O8804 -> 958463.6647 | F33: ='Hourly load shapes by class'!P8804 -> 9680.802796 | G33: ='Hourly load shapes by class'!Q8804 -> 229.0384042 | H33: ='Hourly load shapes by class'!R8804 -> 323440.9548 | I33: ='Hourly load shapes by class'!S8804 -> 3106.550364 | J33: ='Hourly load shapes by class'!T8804 -> 447921.3432 | K33: ='Hourly load shapes by class'!U8804 -> 287301.7292 | L33: ='Hourly load shapes by class'!V8804 -> 0
